Workbook

Sheet koeficienty
A1: Koeficienty (obec bez ORP) | B1: A | C1: B | G1: Zadání Součty Kč (obce bez ORP) | H1: Kč | J1: Součty Kč (obce bez ORP) | K1: Kč | L1: Rozdíl
A2: ZP | B2: 27.45526327 | C2: 6715271.211 | G2: Obce se základní působností | J2: Obce se základní působností
A3: MÚ | B3: 324.0465639 | C3: 17712745.6 | G3: Obce s matričním úřadem | J3: Obce s matričním úřadem
A4: SÚ | B4: 122.4161185 | C4: 15576113.8 | G4: Obce se stavebním úřadem | J4: Obce se stavebním úřadem
A5: POÚ | B5: 179.6403754 | C5: 20553712.21 | G5: Obce s pověřeným obecním úřadem | J5: Obce s pověřeným obecním úřadem
A7: Koeficienty (ORP) | B7: A | C7: B | D7: C | G7: Zadání Součty Kč (ORP) | H7: Kč | J7: Součty Kč (ORP) | L7: Kč
A8: ZP | B8: 29.44411719 | C8: 1516954.287 | D8: 0 | G8: Obce se základní působností | J8: Obce se základní působností
A9: MÚ | B9: 369.6427598 | C9: 7678337.011 | D9: 5209.145785 | G9: Obce s matričním úřadem | J9: Obce s matričním úřadem
A10: SÚ | B10: 75.38062385 | C10: 4812568.544 | D10: 9799.904112 | G10: Obce se stavebním úřadem | J10: Obce se stavebním úřadem
A11: SÚ ORP | B11: 83.33540808 | C11: 4965458.474 | D11: 8823.129574 | G11: Obec se stavebním úřadem ORP | J11: Obec se stavebním úřadem ORP
A12: POÚ | B12: 47.81150691 | C12: 8854670.96 | D12: 11678.85624 | G12: Obce s pověřeným obecním úřadem | J12: Obce s pověřeným obecním úřadem
A13: ORP | B13: 1.271392065 | C13: 3526294.41 | D13: 40565.24163 | G13: Obce s rozšířenou působností | J13: Obce s rozšířenou působností
A15: Limity obyvatel | H15: =SUM(H2:H5)+SUM(H8:H13) -> 0 | L15: =SUM(L2:L5)+SUM(L8:L13) -> 0
A16: Obec | B16: 300
A17: Obec s rozšířenou působností | B17: 15000

Sheet Jihočeský
R1: Základní působnost | S1: Matriční působnost | AC1: Stavební působnost obecná | AE1: Stavební působnost ORP | AG1: Pověřený obecní úřad | AI1: Rozšířená působnost | AK1: Zvláštní postavení | AL1: Občanské průkazy | AP1: JKM | AR1: Opatrovanci | AT1: Územní plánování | AX1: Řidičské průkazy | AZ1: Živnostenský úřad | BB1: Zkušební komisaři | BL1: Příspěvek celkem
B2: =SUBTOTAL(9,B4:B626) -> 653227 | D2: =SUBTOTAL(9,D4:D626) -> 623 | E2: =SUBTOTAL(9,E4:E626) -> 113 | F2: =SUBTOTAL(9,F4:F626) -> 46 | G2: =SUBTOTAL(9,G4:G626) -> 37 | H2: =SUBTOTAL(9,H4:H626) -> 17 | R2: =SUBTOTAL(9,R4:R626) -> 106245237.2 | S2: 653227 | T2: 22974300.97 | U2: 4944 | V2: 3796992 | W2: 2894 | X2: 8890368 | Y2: 6864 | Z2: 7028736 | AA2: 2240 | AB2: 573440 | AC2: 653227 | AD2: 50183854 | AE2: 653227 | AF2: 38927143.54 | AG2: 653227 | AH2: 102602941.6 | AI2: 653227 | AJ2: 299102694.9 | AK2: 0 | AL2: 79993 | AM2: 11279013 | AN2: 0 | AO2: 0 | AP2: 413 | AQ2: 1224000 | AR2: 809 | AS2: 24674500 | AT2: 3697 | AU2: 10137174 | AV2: 277 | AW2: 253178 | AX2: 27377 | AY2: 3860157 | AZ2: 28722 | BA2: 9851646 | BB2: 13981 | BC2: 1523929 | BD2: 1615 | BE2: 132430 | BF2: 16327 | BG2: 5355256 | BH2: 1750 | BI2: 717500 | BJ2: 494 | BK2: 108186 | BL2: 709442677.2 | BM2: 709429700
A3: Název obce | B3: Počet obyvatel | C3: ZUJ | D3: ZP | E3: MÚ | F3: SÚ | G3: POÚ | H3: ORP | I3: Kraj | J3: ZUJ MÚ | K3: Název MÚ | L3: ZUJ SÚ | M3: Název SÚ | N3: ZUJ POÚ | O3: Název POÚ | P3: ZUJ ORP | Q3: Název ORP | R3: Příspěvek základní působnost | S3: SO MÚ | T3: Příspěvek matriční působnost | U3: Narození | V3: Příspěvek narození | W3: Sňatek | X3: Příspěvek sňatek | Y3: Úmrtí | Z3: Příspěvek úmrtí | AA3: Určení otcovství | AB3: Příspěvek určení otcovství | AC3: SO SÚ | AD3: Příspěvek stavební působnost | AE3: SO SÚ ORP | AF3: Příspěvek SÚ ORP | AG3: SO POÚ | AH3: Příspěvek pověřený úřad | AI3: SO ORP | AJ3: Příspěvek ORP | AK3: Zvláštní postavení* | AL3: Počet žádostí | AM3: Příspěvek počet žádostí | AN3: Počet aktivací | AO3: Příspěvek počet aktivací | AP3: JKM počet úkonů | AQ3: JKM příspěvek | AR3: Počet opatrovanců | AS3: Příspěvek opatrovnictví | AT3: Počet aktů územního plánování | AU3: Příspěvek územní plánování | AV3: Počet stanovisek fikcí | AW3: Příspěvek počet stanovisek fikcí | AX3: Počet řidičských průkazů | AY3: Příspěvek řidičské průkazy | AZ3: Počet avíz živnostenského úřadu | BA3: Příspěvek živnostenský úřad | BB3: A+B+T+C+D TEST | BC3: Příspěvek | BD3: C+D ÚDRŽBA | BE3: Příspěvek | BF3: A+B+T JIZDA prak. část | BG3: Příspěvek | BH3: C+D J=JÍZDA prak. část | BI3: Příspěvek | BJ3: PZ | BK3: Příspěvek | BL3: Příspěvek součet | BM3: Příspěvek zaokrouhleno
A4: Adamov | B4: 1040 | C4: 535826 | D4: 1 | E4: 0 | F4: 0 | G4: 0 | H4: 0 | I4: Jihočeský kraj | J4: 544981 | K4: Rudolfov | L4: 544981 | M4: Rudolfov | N4: 544256 | O4: České Budějovice | P4: 544256 | Q4: České Budějovice | R4: 245263.0583 | BL4: =SUMIF(R4:R4,"<>")+SUMIF(T4:T4,"<>")+SUMIF(V4:V4,"<>")+SUMIF(X4:X4,"<>")+SUMIF(Z4:Z4,"<>")+SUMIF(AB4:AB4,"<>")+SUMIF(AD4:AD4,"<>")+SUMIF(AF4:AF4,"<>")+SUMIF(AH4:AH4,"<>")+SUMIF(AJ4:AJ4,"<>")+SUMIF(AK4:AK4,"<>")+SUMIF(AM4:AM4,"<>")+SUMIF(AO4:AO4,"<>")+SUMIF(AQ4:AQ4,"<>")+SUMIF(AS4:AS4,"<>")+SUMIF(AU4:AU4,"<>")+SUMIF(AW4:AW4,"<>")+SUMIF(AY4:AY4,"<>")+SUMIF(BA4:BA4,"<>")+SUMIF(BC4:BC4,"<>")+SUMIF(BE4:BE4,"<>")+SUMIF(BG4:BG4,"<>")+SUMIF(BI4:BI4,"<>")+SUMIF(BK4:BK4,"<>") -> 245263.0583 | BM4: =ROUND(BL4/100,0)*100 -> 245300
A5: Albrechtice nad Vltavou | B5: 1027 | C5: 549258 | D5: 1 | E5: 0 | F5: 0 | G5: 0 | H5: 0 | I5: Jihočeský kraj | J5: 549240 | K5: Písek | L5: 549240 | M5: Písek | N5: 549240 | O5: Písek | P5: 549240 | Q5: Písek | R5: 242251.6655 | BL5: 242251.6655 | BM5: 242300
A6: Babice | B6: 160 | C6: 537241 | D6: 1 | E6: 0 | F6: 0 | G6: 0 | H6: 0 | I6: Jihočeský kraj | J6: 550442 | K6: Netolice | L6: 550442 | M6: Netolice | N6: 550442 | O6: Netolice | P6: 550094 | Q6: Prachatice | R6: 71941.66279 | BL6: 71941.66279 | BM6: 71900
A7: Balkova Lhota | B7: 149 | C7: 563251 | D7: 1 | E7: 0 | F7: 0 | G7: 0 | H7: 0 | I7: Jihočeský kraj | J7: 552046 | K7: Tábor | L7: 552046 | M7: Tábor | N7: 552046 | O7: Tábor | P7: 552046 | Q7: Tábor | R7: 71941.66279 | BL7: 71941.66279 | BM7: 71900
A8: Báňovice | B8: 104 | C8: 562726 | D8: 1 | E8: 0 | F8: 0 | G8: 0 | H8: 0 | I8: Jihočeský kraj | J8: 546127 | K8: Dačice | L8: 546127 | M8: Dačice | N8: 546127 | O8: Dačice | P8: 546127 | Q8: Dačice | R8: 71941.66279 | BL8: 71941.66279 | BM8: 71900
A9: Bavorov | B9: 1683 | C9: 550809 | D9: 1 | E9: 1 | F9: 0 | G9: 0 | H9: 0 | I9: Jihočeský kraj | J9: 550809 | K9: Bavorov | L9: 551953 | M9: Vodňany | N9: 551953 | O9: Vodňany | P9: 551953 | Q9: Vodňany | R9: 393071.0253 | S9: =SUMIFS($B:$B,$J:$J,$C9) -> 2230 | T9: 121335.1261 | U9: 0 | V9: =U9*768 -> 0 | W9: 13 | X9: =W9*3072 -> 39936 | Y9: 16 | Z9: =Y9*1024 -> 16384 | AA9: 5 | AB9: =AA9*256 -> 1280 | BL9: 572006.1514 | BM9: 572000
A10: Bečice | B10: 79 | C10: 563366 | D10: 1 | E10: 0 | F10: 0 | G10: 0 | H10: 0 | I10: Jihočeský kraj | J10: 552666 | K10: Malšice | L10: 552046 | M10: Tábor | N10: 552046 | O10: Tábor | P10: 552046 | Q10: Tábor | R10: 71941.66279 | BL10: 71941.66279 | BM10: 71900
A11: Bečice | B11: 106 | C11: 536156 | D11: 1 | E11: 0 | F11: 0 | G11: 0 | H11: 0 | I11: Jihočeský kraj | J11: 545201 | K11: Týn nad Vltavou | L11: 545201 | M11: Týn nad Vltavou | N11: 545201 | O11: Týn nad Vltavou | P11: 545201 | Q11: Týn nad Vltavou | R11: 71941.66279 | BL11: 71941.66279 | BM11: 71900
A12: Bednárec | B12: 117 | C12: 562548 | D12: 1 | E12: 0 | F12: 0 | G12: 0 | H12: 0 | I12: Jihočeský kraj | J12: 545881 | K12: Jindřichův Hradec | L12: 546801 | M12: Nová Včelnice | N12: 545881 | O12: Jindřichův Hradec | P12: 545881 | Q12: Jindřichův Hradec | R12: 71941.66279 | BL12: 71941.66279 | BM12: 71900
A13: Bednáreček | B13: 178 | C13: 561053 | D13: 1 | E13: 0 | F13: 0 | G13: 0 | H13: 0 | I13: Jihočeský kraj | J13: 545881 | K13: Jindřichův Hradec | L13: 545881 | M13: Jindřichův Hradec | N13: 545881 | O13: Jindřichův Hradec | P13: 545881 | Q13: Jindřichův Hradec | R13: 71941.66279 | BL13: 71941.66279 | BM13: 71900
A14: Bechyně | B14: 4815 | C14: 552054 | D14: 1 | E14: 1 | F14: 1 | G14: 1 | H14: 0 | I14: Jihočeský kraj | J14: 552054 | K14: Bechyně | L14: 552054 | M14: Bechyně | N14: 552054 | O14: Bechyně | P14: 552046 | Q14: Tábor | R14: 1090539.472 | S14: =SUMIFS($B:$B,$J:$J,$C14) -> 6880 | T14: 373048.8309 | U14: 0 | V14: =U14*768 -> 0 | W14: 44 | X14: =W14*3072 -> 135168 | Y14: 35 | Z14: =Y14*1024 -> 35840 | AA14: 10 | AB14: =AA14*256 -> 2560 | AC14: =SUMIFS($B:$B,$L:$L,$C14) -> 6880 | AD14: =(koeficienty!$C$4/(koeficienty!$B$4 + SQRT(IF(AC14<300,0.3,AC14/1000)))) * (IF(AC14<300,0.3,AC14/1000)) -> 857041.2628 | AG14: =SUMIFS($B:$B,$N:$N,$C14) -> 6880 | AH14: 775852.8492 | AR14: 6 | AS14: =AR14*30500 -> 183000 | BL14: 3453050.415 | BM14: 3453100
A15: Bělčice | B15: 1024 | C15: 550817 | D15: 1 | E15: 1 | F15: 0 | G15: 0 | H15: 0 | I15: Jihočeský kraj | J15: 550817 | K15: Bělčice | L15: 550850 | M15: Blatná | N15: 550850 | O15: Blatná | P15: 550850 | Q15: Blatná | R15: 241556.5852 | S15: =SUMIFS($B:$B,$J:$J,$C15) -> 1348 | T15: 73420.12063 | U15: 0 | V15: =U15*768 -> 0 | W15: 10 | X15: =W15*3072 -> 30720 | Y15: 5 | Z15: =Y15*1024 -> 5120 | AA15: 3 | AB15: =AA15*256 -> 768 | BL15: 351584.7059 | BM15: 351600
A16: Běleč | B16: 195 | C16: 560448 | D16: 1 | E16: 0 | F16: 0 | G16: 0 | H16: 0 | I16: Jihočeský kraj | J16: 552704 | K16: Mladá Vožice | L16: 552704 | M16: Mladá Vožice | N16: 552704 | O16: Mladá Vožice | P16: 552046 | Q16: Tábor | R16: 71941.66279 | BL16: 71941.66279 | BM16: 71900
A17: Benešov nad Černou | B17: 1376 | C17: 545406 | D17: 1 | E17: 1 | F17: 0 | G17: 0 | H17: 0 | I17: Jihočeský kraj | J17: 545406 | K17: Benešov nad Černou | L17: 545562 | M17: Kaplice | N17: 545562 | O17: Kaplice | P17: 545562 | Q17: Kaplice | R17: 322765.0707 | S17: =SUMIFS($B:$B,$J:$J,$C17) -> 1607 | T17: 87498.11343 | U17: 0 | V17: =U17*768 -> 0 | W17: 10 | X17: =W17*3072 -> 30720 | Y17: 10 | Z17: =Y17*1024 -> 10240 | AA17: 2 | AB17: =AA17*256 -> 512 | AR17: 5 | AS17: =AR17*30500 -> 152500 | BL17: 604235.1841 | BM17: 604200
A18: Bernartice | B18: 1405 | C18: 549266 | D18: 1 | E18: 1 | F18: 1 | G18: 0 | H18: 0 | I18: Jihočeský kraj | J18: 549266 | K18: Bernartice | L18: 549266 | M18: Bernartice | N18: 549576 | O18: Milevsko | P18: 549576 | Q18: Milevsko | R18: 329426.034 | S18: =SUMIFS($B:$B,$J:$J,$C18) -> 1999 | T18: 108792.885 | U18: 0 | V18: =U18*768 -> 0 | W18: 4 | X18: =W18*3072 -> 12288 | Y18: 6 | Z18: =Y18*1024 -> 6144 | AA18: 3 | AB18: =AA18*256 -> 768 | AC18: =SUMIFS($B:$B,$L:$L,$C18) -> 3046 | AD18: =(koeficienty!$C$4/(koeficienty!$B$4 + SQRT(IF(AC18<300,0.3,AC18/1000)))) * (IF(AC18<300,0.3,AC18/1000)) -> 382122.3299 | BL18: 839541.249 | BM18: 839500
A19: Besednice | B19: 832 | C19: 545414 | D19: 1 | E19: 1 | F19: 0 | G19: 0 | H19: 0 | I19: Jihočeský kraj | J19: 545414 | K19: Besednice | L19: 545562 | M19: Kaplice | N19: 545562 | O19: Kaplice | P19: 545562 | Q19: Kaplice | R19: 196955.1294 | S19: =SUMIFS($B:$B,$J:$J,$C19) -> 832 | T19: 45350.39113 | U19: 0 | V19: =U19*768 -> 0 | W19: 4 | X19: =W19*3072 -> 12288 | Y19: 4 | Z19: =Y19*1024 -> 4096 | AA19: 0 | AB19: =AA19*256 -> 0 | BL19: 258689.5205 | BM19: 258700
A20: Bezdědovice | B20: 385 | C20: 598895 | D20: 1 | E20: 0 | F20: 0 | G20: 0 | H20: 0 | I20: Jihočeský kraj | J20: 550850 | K20: Blatná | L20: 550850 | M20: Blatná | N20: 550850 | O20: Blatná | P20: 550850 | Q20: Blatná | R20: 92085.86403 | BL20: 92085.86403 | BM20: 92100
A21: Bílsko | B21: 208 | C21: 550833 | D21: 1 | E21: 0 | F21: 0 | G21: 0 | H21: 0 | I21: Jihočeský kraj | J21: 550809 | K21: Bavorov | L21: 551953 | M21: Vodňany | N21: 551953 | O21: Vodňany | P21: 551953 | Q21: Vodňany | R21: 71941.66279 | BL21: 71941.66279 | BM21: 71900
A22: Blatná | B22: 6669 | C22: 550850 | D22: 1 | E22: 1 | F22: 1 | G22: 1 | H22: 1 | I22: Jihočeský kraj | J22: 550850 | K22: Blatná | L22: 550850 | M22: Blatná | N22: 550850 | O22: Blatná | P22: 550850 | Q22: Blatná | R22: 315880.5942 | S22: =SUMIFS($B:$B,$J:$J,$C22) -> 9317 | T22: 205744.4475 | U22: 0 | V22: =U22*768 -> 0 | W22: 38 | X22: =W22*3072 -> 116736 | Y22: 53 | Z22: =Y22*1024 -> 54272 | AA22: 36 | AB22: =AA22*256 -> 9216 | AC22: =SUMIFS($B:$B,$L:$L,$C22) -> 13838 | AD22: 912175.1528 | AE22: =SUMIFS($B:$B,$P:$P,$C22) -> 13838 | AF22: 917320.7941 | AG22: =SUMIFS($B:$B,$N:$N,$C22) -> 13838 | AH22: 2461514.998 | AI22: =SUMIFS($B:$B,$P:$P,$C22) -> 13838 | AJ22: 10572802.14 | AL22: 1975 | AM22: =AL22*141 -> 278475 | AR22: 11 | AS22: =AR22*30500 -> 335500 | AT22: 116 | AU22: =AT22*2742 -> 318072 | AV22: 4 | AW22: =AV22*914 -> 3656 | AX22: 814 | AY22: =AX22*141 -> 114774 | AZ22: 487 | BA22: =AZ22*343 -> 167041 | BB22: 353 | BC22: =BB22*109 -> 38477 | BD22: 63 | BE22: =BD22*82 -> 5166 | BF22: 511 | BG22: =BF22*328 -> 167608 | BH22: 66 | BI22: =BH22*410 -> 27060 | BJ22: 18 | BK22: =BJ22*219 -> 3942 | BL22: 17025433.13 | BM22: 17025400
A23: Blažejov | B23: 482 | C23: 561711 | D23: 1 | E23: 0 | F23: 0 | G23: 0 | H23: 0 | I23: Jihočeský kraj | J23: 545881 | K23: Jindřichův Hradec | L23: 545881 | M23: Jindřichův Hradec | N23: 545881 | O23: Jindřichův Hradec | P23: 545881 | Q23: Jindřichův Hradec | R23: 114984.5573 | BL23: 114984.5573 | BM23: 115000
A24: Bohdalovice | B24: 294 | C24: 536253 | D24: 1 | E24: 0 | F24: 0 | G24: 0 | H24: 0 | I24: Jihočeský kraj | J24: 545830 | K24: Větřní | L24: 545392 | M24: Český Krumlov | N24: 545392 | O24: Český Krumlov | P24: 545392 | Q24: Český Krumlov | R24: 71941.66279 | BL24: 71941.66279 | BM24: 71900
A25: Bohumilice | B25: 320 | C25: 550116 | D25: 1 | E25: 0 | F25: 0 | G25: 0 | H25: 0 | I25: Jihočeský kraj | J25: 550167 | K25: Čkyně | L25: 550647 | M25: Vimperk | N25: 550647 | O25: Vimperk | P25: 550647 | Q25: Vimperk | R25: 76688.58078 | BL25: 76688.58078 | BM25: 76700
A26: Bohunice | B26: 44 | C26: 537527 | D26: 1 | E26: 0 | F26: 0 | G26: 0 | H26: 0 | I26: Jihočeský kraj | J26: 550663 | K26: Vlachovo Březí | L26: 550094 | M26: Prachatice | N26: 550094 | O26: Prachatice | P26: 550094 | Q26: Prachatice | R26: 71941.66279 | BL26: 71941.66279 | BM26: 71900
A27: Borek | B27: 1585 | C27: 544272 | D27: 1 | E27: 0 | F27: 0 | G27: 0 | H27: 0 | I27: Jihočeský kraj | J27: 544256 | K27: České Budějovice | L27: 544256 | M27: České Budějovice | N27: 544256 | O27: České Budějovice | P27: 544256 | Q27: České Budějovice | R27: 370676.994 | BL27: 370676.994 | BM27: 370700
A28: Borkovice | B28: 249 | C28: 552097 | D28: 1 | E28: 0 | F28: 0 | G28: 0 | H28: 0 | I28: Jihočeský kraj | J28: 553271 | K28: Veselí nad Lužnicí | L28: 553271 | M28: Veselí nad Lužnicí | N28: 553271 | O28: Veselí nad Lužnicí | P28: 553131 | Q28: Soběslav | R28: 71941.66279 | BL28: 71941.66279 | BM28: 71900
A29: Borotín | B29: 723 | C29: 552101 | D29: 1 | E29: 1 | F29: 0 | G29: 0 | H29: 0 | I29: Jihočeský kraj | J29: 552101 | K29: Borotín | L29: 552046 | M29: Tábor | N29: 552046 | O29: Tábor | P29: 552046 | Q29: Tábor | R29: 171526.0727 | S29: =SUMIFS($B:$B,$J:$J,$C29) -> 723 | T29: 39416.55561 | U29: 0 | V29: =U29*768 -> 0 | W29: 10 | X29: =W29*3072 -> 30720 | Y29: 4 | Z29: =Y29*1024 -> 4096 | AA29: 2 | AB29: =AA29*256 -> 512 | BL29: 246270.6283 | BM29: 246300
A30: Borová Lada | B30: 281 | C30: 545902 | D30: 1 | E30: 0 | F30: 0 | G30: 0 | H30: 0 | I30: Jihočeský kraj | J30: 550647 | K30: Vimperk | L30: 550647 | M30: Vimperk | N30: 550647 | O30: Vimperk | P30: 550647 | Q30: Vimperk | R30: 71941.66279 | BL30: 71941.66279 | BM30: 71900
A31: Borovany | B31: 207 | C31: 598780 | D31: 1 | E31: 0 | F31: 0 | G31: 0 | H31: 0 | I31: Jihočeský kraj | J31: 549266 | K31: Bernartice | L31: 549266 | M31: Bernartice | N31: 549576 | O31: Milevsko | P31: 549576 | Q31: Milevsko | R31: 71941.66279 | BL31: 71941.66279 | BM31: 71900
A32: Borovany | B32: 4184 | C32: 544281 | D32: 1 | E32: 1 | F32: 1 | G32: 0 | H32: 0 | I32: Jihočeský kraj | J32: 544281 | K32: Borovany | L32: 544281 | M32: Borovany | N32: 545171 | O32: Trhové Sviny | P32: 545171 | Q32: Trhové Sviny | R32: 952406.2427 | S32: =SUMIFS($B:$B,$J:$J,$C32) -> 4786 | T32: 259853.7667 | U32: 0 | V32: =U32*768 -> 0 | W32: 19 | X32: =W32*3072 -> 58368 | Y32: 14 | Z32: =Y32*1024 -> 14336 | AA32: 10 | AB32: =AA32*256 -> 2560 | AC32: =SUMIFS($B:$B,$L:$L,$C32) -> 4786 | AD32: =(koeficienty!$C$4/(koeficienty!$B$4 + SQRT(IF(AC32<300,0.3,AC32/1000)))) * (IF(AC32<300,0.3,AC32/1000)) -> 598274.4817 | BL32: 1885798.491 | BM32: 1885800
A33: Borovnice | B33: 163 | C33: 535681 | D33: 1 | E33: 0 | F33: 0 | G33: 0 | H33: 0 | I33: Jihočeský kraj | J33: 544256 | K33: České Budějovice | L33: 544256 | M33: České Budějovice | N33: 544256 | O33: České Budějovice | P33: 544256 | Q33: České Budějovice | R33: 71941.66279 | BL33: 71941.66279 | BM33: 71900
A34: Boršov nad Vltavou | B34: 2105 | C34: 544299 | D34: 1 | E34: 1 | F34: 0 | G34: 0 | H34: 0 | I34: Jihočeský kraj | J34: 544299 | K34: Boršov nad Vltavou | L34: 544256 | M34: České Budějovice | N34: 544256 | O34: České Budějovice | P34: 544256 | Q34: České Budějovice | R34: 489019.0525 | S34: =SUMIFS($B:$B,$J:$J,$C34) -> 5091 | T34: 276355.4693 | U34: 0 | V34: =U34*768 -> 0 | W34: 11 | X34: =W34*3072 -> 33792 | Y34: 17 | Z34: =Y34*1024 -> 17408 | AA34: 2 | AB34: =AA34*256 -> 512 | BL34: 817086.5218 | BM34: 817100
A35: Bořetín | B35: 98 | C35: 562742 | D35: 1 | E35: 0 | F35: 0 | G35: 0 | H35: 0 | I35: Jihočeský kraj | J35: 547239 | K35: Strmilov | L35: 545881 | M35: Jindřichův Hradec | N35: 545881 | O35: Jindřichův Hradec | P35: 545881 | Q35: Jindřichův Hradec | R35: 71941.66279 | BL35: 71941.66279 | BM35: 71900
A36: Bošice | B36: 378 | C36: 550124 | D36: 1 | E36: 0 | F36: 0 | G36: 0 | H36: 0 | I36: Jihočeský kraj | J36: 550167 | K36: Čkyně | L36: 550647 | M36: Vimperk | N36: 550647 | O36: Vimperk | P36: 550647 | Q36: Vimperk | R36: 90429.82739 | BL36: 90429.82739 | BM36: 90400
A37: Bošilec | B37: 220 | C37: 535401 | D37: 1 | E37: 0 | F37: 0 | G37: 0 | H37: 0 | I37: Jihočeský kraj | J37: 545121 | K37: Ševětín | L37: 544256 | M37: České Budějovice | N37: 544256 | O37: České Budějovice | P37: 544256 | Q37: České Budějovice | R37: 71941.66279 | BL37: 71941.66279 | BM37: 71900
A38: Boudy | B38: 214 | C38: 562122 | D38: 1 | E38: 0 | F38: 0 | G38: 0 | H38: 0 | I38: Jihočeský kraj | J38: 549584 | K38: Mirotice | L38: 549584 | M38: Mirotice | N38: 549584 | O38: Mirotice | P38: 549240 | Q38: Písek | R38: 71941.66279 | BL38: 71941.66279 | BM38: 71900
A39: Božetice | B39: 347 | C39: 549291 | D39: 1 | E39: 0 | F39: 0 | G39: 0 | H39: 0 | I39: Jihočeský kraj | J39: 549843 | K39: Sepekov | L39: 549576 | M39: Milevsko | N39: 549576 | O39: Milevsko | P39: 549576 | Q39: Milevsko | R39: 83089.84679 | BL39: 83089.84679 | BM39: 83100
A40: Bradáčov | B40: 45 | C40: 552127 | D40: 1 | E40: 0 | F40: 0 | G40: 0 | H40: 0 | I40: Jihočeský kraj | J40: 552496 | K40: Chýnov | L40: 552704 | M40: Mladá Vožice | N40: 552046 | O40: Tábor | P40: 552046 | Q40: Tábor | R40: 71941.66279 | BL40: 71941.66279 | BM40: 71900
A41: Branice | B41: 308 | C41: 549304 | D41: 1 | E41: 0 | F41: 0 | G41: 0 | H41: 0 | I41: Jihočeský kraj | J41: 549576 | K41: Milevsko | L41: 549576 | M41: Milevsko | N41: 549576 | O41: Milevsko | P41: 549576 | Q41: Milevsko | R41: 73840.97665 | BL41: 73840.97665 | BM41: 73800
A42: Branišov | B42: 276 | C42: 551490 | D42: 1 | E42: 0 | F42: 0 | G42: 0 | H42: 0 | I42: Jihočeský kraj | J42: 544442 | K42: Dubné | L42: 544256 | M42: České Budějovice | N42: 544256 | O42: České Budějovice | P42: 544256 | Q42: České Budějovice | R42: 71941.66279 | BL42: 71941.66279 | BM42: 71900
A43: Bratronice | B43: 76 | C43: 537063 | D43: 1 | E43: 0 | F43: 0 | G43: 0 | H43: 0 | I43: Jihočeský kraj | J43: 550850 | K43: Blatná | L43: 550850 | M43: Blatná | N43: 550850 | O43: Blatná | P43: 550850 | Q43: Blatná | R43: 71941.66279 | BL43: 71941.66279 | BM43: 71900
A44: Brloh | B44: 1069 | C44: 545431 | D44: 1 | E44: 1 | F44: 0 | G44: 0 | H44: 0 | I44: Jihočeský kraj | J44: 545431 | K44: Brloh | L44: 545571 | M44: Křemže | N44: 545392 | O44: Český Krumlov | P44: 545392 | Q44: Český Krumlov | R44: 251977.17 | S44: =SUMIFS($B:$B,$J:$J,$C44) -> 1476 | T44: 80378.44877 | U44: 0 | V44: =U44*768 -> 0 | W44: 24 | X44: =W44*3072 -> 73728 | Y44: 6 | Z44: =Y44*1024 -> 6144 | AA44: 3 | AB44: =AA44*256 -> 768 | AR44: 3 | AS44: =AR44*30500 -> 91500 | BL44: 504495.6187 | BM44: 504500
A45: Břehov | B45: 177 | C45: 536059 | D45: 1 | E45: 0 | F45: 0 | G45: 0 | H45: 0 | I45: Jihočeský kraj | J45: 544442 | K45: Dubné | L45: 544256 | M45: České Budějovice | N45: 544256 | O45: České Budějovice | P45: 544256 | Q45: České Budějovice | R45: 71941.66279 | BL45: 71941.66279 | BM45: 71900
A46: Březí | B46: 64 | C46: 530018 | D46: 1 | E46: 0 | F46: 0 | G46: 0 | H46: 0 | I46: Jihočeský kraj | J46: 551350 | K46: Lnáře | L46: 550850 | M46: Blatná | N46: 550850 | O46: Blatná | P46: 550850 | Q46: Blatná | R46: 71941.66279 | BL46: 71941.66279 | BM46: 71900
A47: Březina | B47: 128 | C47: 507733 | D47: 1 | E47: 0 | F47: 0 | G47: 0 | H47: 0 | I47: Jihočeský kraj | J47: 546151 | K47: Deštná | L47: 545881 | M47: Jindřichův Hradec | N47: 545881 | O47: Jindřichův Hradec | P47: 545881 | Q47: Jindřichův Hradec | R47: 71941.66279 | BL47: 71941.66279 | BM47: 71900
A48: Březnice | B48: 256 | C48: 552135 | D48: 1 | E48: 0 | F48: 0 | G48: 0 | H48: 0 | I48: Jihočeský kraj | J48: 552054 | K48: Bechyně | L48: 552054 | M48: Bechyně | N48: 552054 | O48: Bechyně | P48: 552046 | Q48: Tábor | R48: 71941.66279 | BL48: 71941.66279 | BM48: 71900
A49: Budeč | B49: 223 | C49: 546020 | D49: 1 | E49: 0 | F49: 0 | G49: 0 | H49: 0 | I49: Jihočeský kraj | J49: 546127 | K49: Dačice | L49: 546127 | M49: Dačice | N49: 546127 | O49: Dačice | P49: 546127 | Q49: Dačice | R49: 71941.66279 | BL49: 71941.66279 | BM49: 71900
A50: Budislav | B50: 370 | C50: 552143 | D50: 1 | E50: 0 | F50: 0 | G50: 0 | H50: 0 | I50: Jihočeský kraj | J50: 553239 | K50: Tučapy | L50: 553131 | M50: Soběslav | N50: 553131 | O50: Soběslav | P50: 553131 | Q50: Soběslav | R50: 88536.5991 | AR50: 1 | AS50: =AR50*30500 -> 30500 | BL50: 119036.5991 | BM50: 119000
A51: Budíškovice | B51: 736 | C51: 546038 | D51: 1 | E51: 0 | F51: 0 | G51: 0 | H51: 0 | I51: Jihočeský kraj | J51: 546127 | K51: Dačice | L51: 546127 | M51: Dačice | N51: 546127 | O51: Dačice | P51: 546127 | Q51: Dačice | R51: 174563.2868 | BL51: 174563.2868 | BM51: 174600
A52: Budkov | B52: 91 | C52: 561576 | D52: 1 | E52: 0 | F52: 0 | G52: 0 | H52: 0 | I52: Jihočeský kraj | J52: 550663 | K52: Vlachovo Březí | L52: 550094 | M52: Prachatice | N52: 550094 | O52: Prachatice | P52: 550094 | Q52: Prachatice | R52: 71941.66279 | BL52: 71941.66279 | BM52: 71900
A53: Budyně | B53: 53 | C53: 560171 | D53: 1 | E53: 0 | F53: 0 | G53: 0 | H53: 0 | I53: Jihočeský kraj | J53: 550809 | K53: Bavorov | L53: 551953 | M53: Vodňany | N53: 551953 | O53: Vodňany | P53: 551953 | Q53: Vodňany | R53: 71941.66279 | BL53: 71941.66279 | BM53: 71900
A54: Bujanov | B54: 626 | C54: 545449 | D54: 1 | E54: 0 | F54: 0 | G54: 0 | H54: 0 | I54: Jihočeský kraj | J54: 545775 | K54: Rožmitál na Šumavě | L54: 545562 | M54: Kaplice | N54: 545562 | O54: Kaplice | P54: 545562 | Q54: Kaplice | R54: 148824.2792 | BL54: 148824.2792 | BM54: 148800
A55: Buk | B55: 317 | C55: 537519 | D55: 1 | E55: 0 | F55: 0 | G55: 0 | H55: 0 | I55: Jihočeský kraj | J55: 550574 | K55: Šumavské Hoštice | L55: 550647 | M55: Vimperk | N55: 550647 | O55: Vimperk | P55: 550647 | Q55: Vimperk | R55: 75976.83203 | BL55: 75976.83203 | BM55: 76000
A56: Bušanovice | B56: 270 | C56: 550159 | D56: 1 | E56: 0 | F56: 0 | G56: 0 | H56: 0 | I56: Jihočeský kraj | J56: 550663 | K56: Vlachovo Březí | L56: 550094 | M56: Prachatice | N56: 550094 | O56: Prachatice | P56: 550094 | Q56: Prachatice | R56: 71941.66279 | BL56: 71941.66279 | BM56: 71900
A57: Buzice | B57: 175 | C57: 529966 | D57: 1 | E57: 0 | F57: 0 | G57: 0 | H57: 0 | I57: Jihočeský kraj | J57: 550850 | K57: Blatná | L57: 550850 | M57: Blatná | N57: 550850 | O57: Blatná | P57: 550850 | Q57: Blatná | R57: 71941.66279 | BL57: 71941.66279 | BM57: 71900
A58: Cehnice | B58: 511 | C58: 550906 | D58: 1 | E58: 0 | F58: 0 | G58: 0 | H58: 0 | I58: Jihočeský kraj | J58: 550787 | K58: Strakonice | L58: 550787 | M58: Strakonice | N58: 550787 | O58: Strakonice | P58: 550787 | Q58: Strakonice | R58: 121813.6559 | AR58: 1 | AS58: =AR58*30500 -> 30500 | BL58: 152313.6559 | BM58: 152300
A59: Cep | B59: 199 | C59: 509191 | D59: 1 | E59: 0 | F59: 0 | G59: 0 | H59: 0 | I59: Jihočeský kraj | J59: 547336 | K59: Třeboň | L59: 547336 | M59: Třeboň | N59: 547336 | O59: Třeboň | P59: 547336 | Q59: Třeboň | R59: 71941.66279 | BL59: 71941.66279 | BM59: 71900
A60: Cerhonice | B60: 143 | C60: 549321 | D60: 1 | E60: 0 | F60: 0 | G60: 0 | H60: 0 | I60: Jihočeský kraj | J60: 549584 | K60: Mirotice | L60: 549584 | M60: Mirotice | N60: 549584 | O60: Mirotice | P60: 549240 | Q60: Písek | R60: 71941.66279 | BL60: 71941.66279 | BM60: 71900
A61: Cizkrajov | B61: 523 | C61: 546054 | D61: 1 | E61: 0 | F61: 0 | G61: 0 | H61: 0 | I61: Jihočeský kraj | J61: 546127 | K61: Dačice | L61: 546127 | M61: Dačice | N61: 546127 | O61: Dačice | P61: 546127 | Q61: Dačice | R61: 124637.3296 | BL61: 124637.3296 | BM61: 124600
A62: Čakov | B62: 303 | C62: 535541 | D62: 1 | E62: 0 | F62: 0 | G62: 0 | H62: 0 | I62: Jihočeský kraj | J62: 544442 | K62: Dubné | L62: 544256 | M62: České Budějovice | N62: 544256 | O62: České Budějovice | P62: 544256 | Q62: České Budějovice | R62: 72653.99173 | BL62: 72653.99173 | BM62: 72700
A63: Čečelovice | B63: 192 | C63: 510068 | D63: 1 | E63: 0 | F63: 0 | G63: 0 | H63: 0 | I63: Jihočeský kraj | J63: 550850 | K63: Blatná | L63: 550850 | M63: Blatná | N63: 550850 | O63: Blatná | P63: 550850 | Q63: Blatná | R63: 71941.66279 | BL63: 71941.66279 | BM63: 71900
A64: Čejetice | B64: 937 | C64: 550922 | D64: 1 | E64: 0 | F64: 0 | G64: 0 | H64: 0 | I64: Jihočeský kraj | J64: 551856 | K64: Štěkeň | L64: 550787 | M64: Strakonice | N64: 550787 | O64: Strakonice | P64: 550787 | Q64: Strakonice | R64: 221375.4209 | BL64: 221375.4209 | BM64: 221400
A65: Čejkovice | B65: 402 | C65: 544329 | D65: 1 | E65: 0 | F65: 0 | G65: 0 | H65: 0 | I65: Jihočeský kraj | J65: 544442 | K65: Dubné | L65: 544256 | M65: České Budějovice | N65: 544256 | O65: České Budějovice | P65: 544256 | Q65: České Budějovice | R65: 96105.60684 | BL65: 96105.60684 | BM65: 96100
A66: Čenkov u Bechyně | B66: 61 | C66: 598976 | D66: 1 | E66: 0 | F66: 0 | G66: 0 | H66: 0 | I66: Jihočeský kraj | J66: 545201 | K66: Týn nad Vltavou | L66: 545201 | M66: Týn nad Vltavou | N66: 545201 | O66: Týn nad Vltavou | P66: 545201 | Q66: Týn nad Vltavou | R66: 71941.66279 | BL66: 71941.66279 | BM66: 71900
A67: Čepřovice | B67: 211 | C67: 550949 | D67: 1 | E67: 0 | F67: 0 | G67: 0 | H67: 0 | I67: Jihočeský kraj | J67: 551970 | K67: Volyně | L67: 551970 | M67: Volyně | N67: 551970 | O67: Volyně | P67: 550787 | Q67: Strakonice | R67: 71941.66279 | BL67: 71941.66279 | BM67: 71900
A68: Černá v Pošumaví | B68: 856 | C68: 545457 | D68: 1 | E68: 0 | F68: 0 | G68: 0 | H68: 0 | I68: Jihočeský kraj | J68: 545511 | K68: Horní Planá | L68: 545511 | M68: Horní Planá | N68: 545511 | O68: Horní Planá | P68: 545392 | Q68: Český Krumlov | R68: 202543.2622 | BL68: =SUMIF(R68:R68,"<>")+SUMIF(T68:T68,"<>")+SUMIF(V68:V68,"<>")+SUMIF(X68:X68,"<>")+SUMIF(Z68:Z68,"<>")+SUMIF(AB68:AB68,"<>")+SUMIF(AD68:AD68,"<>")+SUMIF(AF68:AF68,"<>")+SUMIF(AH68:AH68,"<>")+SUMIF(AJ68:AJ68,"<>")+SUMIF(AK68:AK68,"<>")+SUMIF(AM68:AM68,"<>")+SUMIF(AO68:AO68,"<>")+SUMIF(AQ68:AQ68,"<>")+SUMIF(AS68:AS68,"<>")+SUMIF(AU68:AU68,"<>")+SUMIF(AW68:AW68,"<>")+SUMIF(AY68:AY68,"<>")+SUMIF(BA68:BA68,"<>")+SUMIF(BC68:BC68,"<>")+SUMIF(BE68:BE68,"<>")+SUMIF(BG68:BG68,"<>")+SUMIF(BI68:BI68,"<>")+SUMIF(BK68:BK68,"<>") -> 202543.2622 | BM68: =ROUND(BL68/100,0)*100 -> 202500
A69: Černýšovice | B69: 80 | C69: 563722 | D69: 1 | E69: 0 | F69: 0 | G69: 0 | H69: 0 | I69: Jihočeský kraj | J69: 552054 | K69: Bechyně | L69: 552054 | M69: Bechyně | N69: 552054 | O69: Bechyně | P69: 552046 | Q69: Tábor | R69: 71941.66279 | BL69: 71941.66279 | BM69: 71900
A70: Červený Hrádek | B70: 196 | C70: 509116 | D70: 1 | E70: 0 | F70: 0 | G70: 0 | H70: 0 | I70: Jihočeský kraj | J70: 546127 | K70: Dačice | L70: 546127 | M70: Dačice | N70: 546127 | O70: Dačice | P70: 546127 | Q70: Dačice | R70: 71941.66279 | BL70: 71941.66279 | BM70: 71900
A71: České Budějovice | B71: 97231 | C71: 544256 | D71: 1 | E71: 1 | F71: 1 | G71: 1 | H71: 1 | I71: Jihočeský kraj | J71: 544256 | K71: České Budějovice | L71: 544256 | M71: České Budějovice | N71: 544256 | O71: České Budějovice | P71: 544256 | Q71: České Budějovice | R71: 3752604.651 | S71: =SUMIFS($B:$B,$J:$J,$C71) -> 116938 | T71: 2462687.972 | U71: 1886 | V71: =U71*768 -> 1448448 | W71: 325 | X71: =W71*3072 -> 998400 | Y71: 1973 | Z71: =Y71*1024 -> 2020352 | AA71: 606 | AB71: =AA71*256 -> 155136 | AC71: =SUMIFS($B:$B,$L:$L,$C71) -> 138791 | AD71: 8070536.302 | AE71: =SUMIFS($B:$B,$P:$P,$C71) -> 168393 | AF71: 9309532.124 | AG71: =SUMIFS($B:$B,$N:$N,$C71) -> 147995 | AH71: 22442088 | AI71: =SUMIFS($B:$B,$P:$P,$C71) -> 168393 | AJ71: 44562886.8 | AL71: 19885 | AM71: =AL71*141 -> 2803785 | AP71: 413 | AQ71: 1224000 | AR71: 120 | AS71: =AR71*30500 -> 3660000 | AT71: 688 | AU71: =AT71*2742 -> 1886496 | AV71: 0 | AW71: =AV71*914 -> 0 | AX71: 6070 | AY71: =AX71*141 -> 855870 | AZ71: 9184 | BA71: =AZ71*343 -> 3150112 | BB71: 3490 | BC71: =BB71*109 -> 380410 | BD71: 478 | BE71: =BD71*82 -> 39196 | BF71: 3548 | BG71: =BF71*328 -> 1163744 | BH71: 553 | BI71: =BH71*410 -> 226730 | BJ71: 109 | BK71: =BJ71*219 -> 23871 | BL71: 110636885.8 | BM71: 110636900
A72: České Velenice | B72: 3607 | C72: 546089 | D72: 1 | E72: 1 | F72: 1 | G72: 1 | H72: 0 | I72: Jihočeský kraj | J72: 546089 | K72: České Velenice | L72: 546089 | M72: České Velenice | N72: 546089 | O72: České Velenice | P72: 547336 | Q72: Třeboň | R72: 825154.7469 | S72: =SUMIFS($B:$B,$J:$J,$C72) -> 3959 | T72: 215082.6841 | U72: 0 | V72: =U72*768 -> 0 | W72: 5 | X72: =W72*3072 -> 15360 | Y72: 32 | Z72: =Y72*1024 -> 32768 | AA72: 4 | AB72: =AA72*256 -> 1024 | AC72: =SUMIFS($B:$B,$L:$L,$C72) -> 3959 | AD72: =(koeficienty!$C$4/(koeficienty!$B$4 + SQRT(IF(AC72<300,0.3,AC72/1000)))) * (IF(AC72<300,0.3,AC72/1000)) -> 495682.787 | AG72: =SUMIFS($B:$B,$N:$N,$C72) -> 3959 | AH72: 448010.2532 | AR72: 6 | AS72: =AR72*30500 -> 183000 | BL72: 2216082.471 | BM72: 2216100
A73: Český Krumlov | B73: 12797 | C73: 545392 | D73: 1 | E73: 1 | F73: 1 | G73: 1 | H73: 1 | I73: Jihočeský kraj | J73: 545392 | K73: Český Krumlov | L73: 545392 | M73: Český Krumlov | N73: 545392 | O73: Český Krumlov | P73: 545392 | Q73: Český Krumlov | R73: 587875.1383 | S73: =SUMIFS($B:$B,$J:$J,$C73) -> 16953 | T73: 369922.9443 | U73: 482 | V73: =U73*768 -> 370176 | W73: 111 | X73: =W73*3072 -> 340992 | Y73: 337 | Z73: =Y73*1024 -> 345088 | AA73: 62 | AB73: =AA73*256 -> 15872 | AC73: =SUMIFS($B:$B,$L:$L,$C73) -> 26348 | AD73: 1707705.979 | AE73: =SUMIFS($B:$B,$P:$P,$C73) -> 41551 | AF73: 2551723.372 | AG73: =SUMIFS($B:$B,$N:$N,$C73) -> 31902 | AH73: 5507137.606 | AI73: =SUMIFS($B:$B,$P:$P,$C73) -> 41551 | AJ73: 20152222.42 | AL73: 4664 | AM73: =AL73*141 -> 657624 | AR73: 5 | AS73: =AR73*30500 -> 152500 | AT73: 232 | AU73: =AT73*2742 -> 636144 | AV73: 28 | AW73: =AV73*914 -> 25592 | AX73: 1596 | AY73: =AX73*141 -> 225036 | AZ73: 1858 | BA73: =AZ73*343 -> 637294 | BB73: 255 | BC73: =BB73*109 -> 27795 | BD73: 11 | BE73: =BD73*82 -> 902 | BF73: 363 | BG73: =BF73*328 -> 119064 | BH73: 10 | BI73: =BH73*410 -> 4100 | BJ73: 35 | BK73: =BJ73*219 -> 7665 | BL73: 34442431.46 | BM73: 34442400
A74: Český Rudolec | B74: 871 | C74: 546097 | D74: 1 | E74: 0 | F74: 0 | G74: 0 | H74: 0 | I74: Jihočeský kraj | J74: 546127 | K74: Dačice | L74: 546127 | M74: Dačice | N74: 546127 | O74: Dačice | P74: 546127 | Q74: Dačice | R74: 206033.9076 | AR74: 3 | AS74: =AR74*30500 -> 91500 | BL74: 297533.9076 | BM74: 297500
A75: Čestice | B75: 907 | C75: 550957 | D75: 1 | E75: 1 | F75: 0 | G75: 0 | H75: 0 | I75: Jihočeský kraj | J75: 550957 | K75: Čestice | L75: 551970 | M75: Volyně | N75: 551970 | O75: Volyně | P75: 550787 | Q75: Strakonice | R75: 214405.4699 | S75: =SUMIFS($B:$B,$J:$J,$C75) -> 1952 | T75: 106240.4312 | U75: 0 | V75: =U75*768 -> 0 | W75: 18 | X75: =W75*3072 -> 55296 | Y75: 6 | Z75: =Y75*1024 -> 6144 | AA75: 2 | AB75: =AA75*256 -> 512 | BL75: 382597.901 | BM75: 382600
A76: Číčenice | B76: 476 | C76: 550965 | D76: 1 | E76: 0 | F76: 0 | G76: 0 | H76: 0 | I76: Jihočeský kraj | J76: 551953 | K76: Vodňany | L76: 551953 | M76: Vodňany | N76: 551953 | O76: Vodňany | P76: 551953 | Q76: Vodňany | R76: 113570.7027 | BL76: 113570.7027 | BM76: 113600
A77: Čimelice | B77: 1017 | C77: 549339 | D77: 1 | E77: 1 | F77: 0 | G77: 0 | H77: 0 | I77: Jihočeský kraj | J77: 549339 | K77: Čimelice | L77: 549584 | M77: Mirotice | N77: 549584 | O77: Mirotice | P77: 549240 | Q77: Písek | R77: 239934.5214 | S77: =SUMIFS($B:$B,$J:$J,$C77) -> 1700 | T77: 92551.49868 | U77: 0 | V77: =U77*768 -> 0 | W77: 5 | X77: =W77*3072 -> 15360 | Y77: 15 | Z77: =Y77*1024 -> 15360 | AA77: 0 | AB77: =AA77*256 -> 0 | AR77: 1 | AS77: =AR77*30500 -> 30500 | BL77: 393706.0201 | BM77: 393700
A78: Číměř | B78: 678 | C78: 546101 | D78: 1 | E78: 0 | F78: 0 | G78: 0 | H78: 0 | I78: Jihočeský kraj | J78: 546798 | K78: Nová Bystřice | L78: 546798 | M78: Nová Bystřice | N78: 546798 | O78: Nová Bystřice | P78: 545881 | Q78: Jindřichův Hradec | R78: 161003.1076 | BL78: 161003.1076 | BM78: 161000
A79: Čížkrajice | B79: 291 | C79: 551503 | D79: 1 | E79: 0 | F79: 0 | G79: 0 | H79: 0 | I79: Jihočeský kraj | J79: 545171 | K79: Trhové Sviny | L79: 545171 | M79: Trhové Sviny | N79: 545171 | O79: Trhové Sviny | P79: 545171 | Q79: Trhové Sviny | R79: 71941.66279 | AR79: 2 | AS79: =AR79*30500 -> 61000 | BL79: 132941.6628 | BM79: 132900
A80: Čížová | B80: 1366 | C80: 549347 | D80: 1 | E80: 0 | F80: 0 | G80: 0 | H80: 0 | I80: Jihočeský kraj | J80: 549240 | K80: Písek | L80: 549240 | M80: Písek | N80: 549240 | O80: Písek | P80: 549240 | Q80: Písek | R80: 320467.1957 | BL80: 320467.1957 | BM80: 320500
A81: Čkyně | B81: 1553 | C81: 550167 | D81: 1 | E81: 1 | F81: 0 | G81: 0 | H81: 0 | I81: Jihočeský kraj | J81: 550167 | K81: Čkyně | L81: 550647 | M81: Vimperk | N81: 550647 | O81: Vimperk | P81: 550647 | Q81: Vimperk | R81: 363354.9341 | S81: =SUMIFS($B:$B,$J:$J,$C81) -> 2739 | T81: 148956.0282 | U81: 0 | V81: =U81*768 -> 0 | W81: 8 | X81: =W81*3072 -> 24576 | Y81: 6 | Z81: =Y81*1024 -> 6144 | AA81: 4 | AB81: =AA81*256 -> 1024 | BL81: 544054.9623 | BM81: 544100
A82: Člunek | B82: 485 | C82: 561703 | D82: 1 | E82: 0 | F82: 0 | G82: 0 | H82: 0 | I82: Jihočeský kraj | J82: 546615 | K82: Kunžak | L82: 545881 | M82: Jindřichův Hradec | N82: 545881 | O82: Jindřichův Hradec | P82: 545881 | Q82: Jindřichův Hradec | R82: 115691.3629 | BL82: 115691.3629 | BM82: 115700
A83: Dačice | B83: 7157 | C83: 546127 | D83: 1 | E83: 1 | F83: 1 | G83: 1 | H83: 1 | I83: Jihočeský kraj | J83: 546127 | K83: Dačice | L83: 546127 | M83: Dačice | N83: 546127 | O83: Dačice | P83: 546127 | Q83: Dačice | R83: 338015.3601 | S83: =SUMIFS($B:$B,$J:$J,$C83) -> 12530 | T83: 285797.0621 | U83: 2 | V83: =U83*768 -> 1536 | W83: 43 | X83: =W83*3072 -> 132096 | Y83: 74 | Z83: =Y83*1024 -> 75776 | AA83: 42 | AB83: =AA83*256 -> 10752 | AC83: =SUMIFS($B:$B,$L:$L,$C83) -> 12530 | AD83: 816734.7107 | AE83: =SUMIFS($B:$B,$P:$P,$C83) -> 18355 | AF83: 1138989.963 | AG83: =SUMIFS($B:$B,$N:$N,$C83) -> 15005 | AH83: 2662304.574 | AI83: =SUMIFS($B:$B,$P:$P,$C83) -> 18355 | AJ83: 12104542.84 | AL83: 2277 | AM83: =AL83*141 -> 321057 | AR83: 21 | AS83: =AR83*30500 -> 640500 | AT83: 118 | AU83: =AT83*2742 -> 323556 | AV83: 28 | AW83: =AV83*914 -> 25592 | AX83: 846 | AY83: =AX83*141 -> 119286 | AZ83: 657 | BA83: =AZ83*343 -> 225351 | BB83: 778 | BC83: =BB83*109 -> 84802 | BD83: 151 | BE83: =BD83*82 -> 12382 | BF83: 751 | BG83: =BF83*328 -> 246328 | BH83: 172 | BI83: =BH83*410 -> 70520 | BJ83: 18 | BK83: =BJ83*219 -> 3942 | BL83: 19639860.51 | BM83: 19639900
A84: Dasný | B84: 353 | C84: 535249 | D84: 1 | E84: 0 | F84: 0 | G84: 0 | H84: 0 | I84: Jihočeský kraj | J84: 544256 | K84: České Budějovice | L84: 544256 | M84: České Budějovice | N84: 544256 | O84: České Budějovice | P84: 544256 | Q84: České Budějovice | R84: 84511.27752 | BL84: 84511.27752 | BM84: 84500
A85: Dešná | B85: 584 | C85: 546143 | D85: 1 | E85: 1 | F85: 0 | G85: 0 | H85: 0 | I85: Jihočeský kraj | J85: 546143 | K85: Dešná | L85: 547166 | M85: Slavonice | N85: 547166 | O85: Slavonice | P85: 546127 | Q85: Dačice | R85: 138972.1165 | S85: =SUMIFS($B:$B,$J:$J,$C85) -> 633 | T85: 34515.73953 | U85: 0 | V85: =U85*768 -> 0 | W85: 0 | X85: =W85*3072 -> 0 | Y85: 1 | Z85: =Y85*1024 -> 1024 | AA85: 1 | AB85: =AA85*256 -> 256 | BL85: 174767.856 | BM85: 174800
A86: Deštná | B86: 754 | C86: 546151 | D86: 1 | E86: 1 | F86: 0 | G86: 0 | H86: 0 | I86: Jihočeský kraj | J86: 546151 | K86: Deštná | L86: 545881 | M86: Jindřichův Hradec | N86: 545881 | O86: Jindřichův Hradec | P86: 545881 | Q86: Jindřichův Hradec | R86: 178766.6605 | S86: =SUMIFS($B:$B,$J:$J,$C86) -> 1213 | T86: 66079.34005 | U86: 0 | V86: =U86*768 -> 0 | W86: 8 | X86: =W86*3072 -> 24576 | Y86: 5 | Z86: =Y86*1024 -> 5120 | AA86: 2 | AB86: =AA86*256 -> 512 | BL86: 275054.0006 | BM86: 275100
A87: Dírná | B87: 424 | C87: 552208 | D87: 1 | E87: 1 | F87: 0 | G87: 0 | H87: 0 | I87: Jihočeský kraj | J87: 552208 | K87: Dírná | L87: 553131 | M87: Soběslav | N87: 553131 | O87: Soběslav | P87: 553131 | Q87: Soběslav | R87: 101303.3816 | S87: =SUMIFS($B:$B,$J:$J,$C87) -> 494 | T87: 26944.14806 | U87: 0 | V87: =U87*768 -> 0 | W87: 24 | X87: =W87*3072 -> 73728 | Y87: 1 | Z87: =Y87*1024 -> 1024 | AA87: 0 | AB87: =AA87*256 -> 0 | BL87: 202999.5296 | BM87: 203000
A88: Dívčí Kopy | B88: 66 | C88: 529753 | D88: 1 | E88: 0 | F88: 0 | G88: 0 | H88: 0 | I88: Jihočeský kraj | J88: 546801 | K88: Nová Včelnice | L88: 546801 | M88: Nová Včelnice | N88: 545881 | O88: Jindřichův Hradec | P88: 545881 | Q88: Jindřichův Hradec | R88: 71941.66279 | BL88: 71941.66279 | BM88: 71900
A89: Dívčice | B89: 626 | C89: 544361 | D89: 1 | E89: 0 | F89: 0 | G89: 0 | H89: 0 | I89: Jihočeský kraj | J89: 545341 | K89: Zliv | L89: 545341 | M89: Zliv | N89: 545341 | O89: Zliv | P89: 544256 | Q89: České Budějovice | R89: 148824.2792 | BL89: 148824.2792 | BM89: 148800
A90: Dlouhá Lhota | B90: 164 | C90: 563650 | D90: 1 | E90: 0 | F90: 0 | G90: 0 | H90: 0 | I90: Jihočeský kraj | J90: 552470 | K90: Choustník | L90: 552046 | M90: Tábor | N90: 552046 | O90: Tábor | P90: 552046 | Q90: Tábor | R90: 71941.66279 | BL90: 71941.66279 | BM90: 71900
A91: Dobev | B91: 1150 | C91: 549363 | D91: 1 | E91: 0 | F91: 0 | G91: 0 | H91: 0 | I91: Jihočeský kraj | J91: 549240 | K91: Písek | L91: 549240 | M91: Písek | N91: 549240 | O91: Písek | P91: 549240 | Q91: Písek | R91: 270704.512 | BL91: 270704.512 | BM91: 270700
A92: Dobrá Voda u Českých Budějovic | B92: 2652 | C92: 535206 | D92: 1 | E92: 0 | F92: 0 | G92: 0 | H92: 0 | I92: Jihočeský kraj | J92: 544256 | K92: České Budějovice | L92: 544256 | M92: České Budějovice | N92: 544256 | O92: České Budějovice | P92: 544256 | Q92: České Budějovice | R92: 612331.4026 | AR92: 6 | AS92: =AR92*30500 -> 183000 | BL92: 795331.4026 | BM92: 795300
A93: Dobrohošť | B93: 45 | C93: 562416 | D93: 1 | E93: 0 | F93: 0 | G93: 0 | H93: 0 | I93: Jihočeský kraj | J93: 546127 | K93: Dačice | L93: 546127 | M93: Dačice | N93: 546127 | O93: Dačice | P93: 546127 | Q93: Dačice | R93: 71941.66279 | BL93: 71941.66279 | BM93: 71900
A94: Dobronice u Bechyně | B94: 113 | C94: 552224 | D94: 1 | E94: 0 | F94: 0 | G94: 0 | H94: 0 | I94: Jihočeský kraj | J94: 552054 | K94: Bechyně | L94: 552054 | M94: Bechyně | N94: 552054 | O94: Bechyně | P94: 552046 | Q94: Tábor | R94: 71941.66279 | BL94: 71941.66279 | BM94: 71900
A95: Dobšice | B95: 139 | C95: 536199 | D95: 1 | E95: 0 | F95: 0 | G95: 0 | H95: 0 | I95: Jihočeský kraj | J95: 545201 | K95: Týn nad Vltavou | L95: 545201 | M95: Týn nad Vltavou | N95: 545201 | O95: Týn nad Vltavou | P95: 545201 | Q95: Týn nad Vltavou | R95: 71941.66279 | BL95: 71941.66279 | BM95: 71900
A96: Dolní Bukovsko | B96: 1712 | C96: 544388 | D96: 1 | E96: 1 | F96: 0 | G96: 0 | H96: 0 | I96: Jihočeský kraj | J96: 544388 | K96: Dolní Bukovsko | L96: 545201 | M96: Týn nad Vltavou | N96: 545201 | O96: Týn nad Vltavou | P96: 545201 | Q96: Týn nad Vltavou | R96: 399689.377 | S96: =SUMIFS($B:$B,$J:$J,$C96) -> 1906 | T96: 103742.0934 | U96: 0 | V96: =U96*768 -> 0 | W96: 5 | X96: =W96*3072 -> 15360 | Y96: 6 | Z96: =Y96*1024 -> 6144 | AA96: 6 | AB96: =AA96*256 -> 1536 | BL96: 526471.4704 | BM96: 526500
A97: Dolní Dvořiště | B97: 1388 | C97: 545465 | D97: 1 | E97: 1 | F97: 0 | G97: 0 | H97: 0 | I97: Jihočeský kraj | J97: 545465 | K97: Dolní Dvořiště | L97: 545562 | M97: Kaplice | N97: 545562 | O97: Kaplice | P97: 545562 | Q97: Kaplice | R97: 325521.8483 | S97: =SUMIFS($B:$B,$J:$J,$C97) -> 1388 | T97: 75594.78429 | U97: 0 | V97: =U97*768 -> 0 | W97: 4 | X97: =W97*3072 -> 12288 | Y97: 4 | Z97: =Y97*1024 -> 4096 | AA97: 6 | AB97: =AA97*256 -> 1536 | BL97: 419036.6326 | BM97: 419000
A98: Dolní Hořice | B98: 857 | C98: 552241 | D98: 1 | E98: 0 | F98: 0 | G98: 0 | H98: 0 | I98: Jihočeský kraj | J98: 552496 | K98: Chýnov | L98: 552496 | M98: Chýnov | N98: 552046 | O98: Tábor | P98: 552046 | Q98: Tábor | R98: 202776.018 | AR98: 1 | AS98: =AR98*30500 -> 30500 | BL98: 233276.018 | BM98: 233300
A99: Dolní Hrachovice | B99: 128 | C99: 560529 | D99: 1 | E99: 0 | F99: 0 | G99: 0 | H99: 0 | I99: Jihočeský kraj | J99: 552992 | K99: Ratibořské Hory | L99: 552704 | M99: Mladá Vožice | N99: 552046 | O99: Tábor | P99: 552046 | Q99: Tábor | R99: 71941.66279 | BL99: 71941.66279 | BM99: 71900
A100: Dolní Novosedly | B100: 266 | C100: 562301 | D100: 1 | E100: 0 | F100: 0 | G100: 0 | H100: 0 | I100: Jihočeský kraj | J100: 550027 | K100: Záhoří | L100: 549240 | M100: Písek | N100: 549240 | O100: Písek | P100: 549240 | Q100: Písek | R100: 71941.66279 | BL100: 71941.66279 | BM100: 71900
A101: Dolní Pěna | B101: 440 | C101: 562467 | D101: 1 | E101: 0 | F101: 0 | G101: 0 | H101: 0 | I101: Jihočeský kraj | J101: 545881 | K101: Jindřichův Hradec | L101: 545881 | M101: Jindřichův Hradec | N101: 545881 | O101: Jindřichův Hradec | P101: 545881 | Q101: Jindřichův Hradec | R101: 105080.6431 | BL101: 105080.6431 | BM101: 105100
A102: Dolní Třebonín | B102: 1348 | C102: 545473 | D102: 1 | E102: 0 | F102: 0 | G102: 0 | H102: 0 | I102: Jihočeský kraj | J102: 545392 | K102: Český Krumlov | L102: 545392 | M102: Český Krumlov | N102: 545392 | O102: Český Krumlov | P102: 545392 | Q102: Český Krumlov | R102: 316329.7299 | AR102: 1 | AS102: =AR102*30500 -> 30500 | BL102: 346829.7299 | BM102: 346800
A103: Dolní Žďár | B103: 167 | C103: 562602 | D103: 1 | E103: 0 | F103: 0 | G103: 0 | H103: 0 | I103: Jihočeský kraj | J103: 547221 | K103: Stráž nad Nežárkou | L103: 545881 | M103: Jindřichův Hradec | N103: 545881 | O103: Jindřichův Hradec | P103: 545881 | Q103: Jindřichův Hradec | R103: 71941.66279 | BL103: 71941.66279 | BM103: 71900
A104: Domanín | B104: 437 | C104: 562840 | D104: 1 | E104: 0 | F104: 0 | G104: 0 | H104: 0 | I104: Jihočeský kraj | J104: 547336 | K104: Třeboň | L104: 547336 | M104: Třeboň | N104: 547336 | O104: Třeboň | P104: 547336 | Q104: Třeboň | R104: 104372.5923 | BL104: 104372.5923 | BM104: 104400
A105: Doňov | B105: 74 | C105: 507610 | D105: 1 | E105: 0 | F105: 0 | G105: 0 | H105: 0 | I105: Jihočeský kraj | J105: 546542 | K105: Kardašova Řečice | L105: 545881 | M105: Jindřichův Hradec | N105: 545881 | O105: Jindřichův Hradec | P105: 545881 | Q105: Jindřichův Hradec | R105: 71941.66279 | BL105: 71941.66279 | BM105: 71900
A106: Doubravice | B106: 253 | C106: 550981 | D106: 1 | E106: 0 | F106: 0 | G106: 0 | H106: 0 | I106: Jihočeský kraj | J106: 550787 | K106: Strakonice | L106: 550787 | M106: Strakonice | N106: 550787 | O106: Strakonice | P106: 550787 | Q106: Strakonice | R106: 71941.66279 | BL106: 71941.66279 | BM106: 71900
A107: Doubravice | B107: 335 | C107: 535664 | D107: 1 | E107: 0 | F107: 0 | G107: 0 | H107: 0 | I107: Jihočeský kraj | J107: 544256 | K107: České Budějovice | L107: 544256 | M107: České Budějovice | N107: 544256 | O107: České Budějovice | P107: 544256 | Q107: České Budějovice | R107: 80245.82411 | BL107: 80245.82411 | BM107: 80200
A108: Doudleby | B108: 464 | C108: 544400 | D108: 1 | E108: 0 | F108: 0 | G108: 0 | H108: 0 | I108: Jihočeský kraj | J108: 544256 | K108: České Budějovice | L108: 544256 | M108: České Budějovice | N108: 544256 | O108: České Budějovice | P108: 544256 | Q108: České Budějovice | R108: 110742.0123 | BL108: 110742.0123 | BM108: 110700
A109: Drahonice | B109: 413 | C109: 551015 | D109: 1 | E109: 0 | F109: 0 | G109: 0 | H109: 0 | I109: Jihočeský kraj | J109: 551953 | K109: Vodňany | L109: 551953 | M109: Vodňany | N109: 551953 | O109: Vodňany | P109: 551953 | Q109: Vodňany | R109: 98705.08563 | BL109: 98705.08563 | BM109: 98700
A110: Drahotěšice | B110: 334 | C110: 535958 | D110: 1 | E110: 0 | F110: 0 | G110: 0 | H110: 0 | I110: Jihočeský kraj | J110: 545121 | K110: Ševětín | L110: 544256 | M110: České Budějovice | N110: 544256 | O110: České Budějovice | P110: 544256 | Q110: České Budějovice | R110: 80008.75164 | BL110: 80008.75164 | BM110: 80000
A111: Drahov | B111: 149 | C111: 563765 | D111: 1 | E111: 0 | F111: 0 | G111: 0 | H111: 0 | I111: Jihočeský kraj | J111: 553271 | K111: Veselí nad Lužnicí | L111: 553271 | M111: Veselí nad Lužnicí | N111: 553271 | O111: Veselí nad Lužnicí | P111: 553131 | Q111: Soběslav | R111: 71941.66279 | BL111: 71941.66279 | BM111: 71900
A112: Drachkov | B112: 196 | C112: 560219 | D112: 1 | E112: 0 | F112: 0 | G112: 0 | H112: 0 | I112: Jihočeský kraj | J112: 550787 | K112: Strakonice | L112: 550787 | M112: Strakonice | N112: 550787 | O112: Strakonice | P112: 550787 | Q112: Strakonice | R112: 71941.66279 | BL112: 71941.66279 | BM112: 71900
A113: Dráchov | B113: 222 | C113: 552275 | D113: 1 | E113: 0 | F113: 0 | G113: 0 | H113: 0 | I113: Jihočeský kraj | J113: 553131 | K113: Soběslav | L113: 553131 | M113: Soběslav | N113: 553131 | O113: Soběslav | P113: 553131 | Q113: Soběslav | R113: 71941.66279 | BL113: 71941.66279 | BM113: 71900
A114: Dražice | B114: 846 | C114: 552283 | D114: 1 | E114: 0 | F114: 0 | G114: 0 | H114: 0 | I114: Jihočeský kraj | J114: 552046 | K114: Tábor | L114: 552046 | M114: Tábor | N114: 552046 | O114: Tábor | P114: 552046 | Q114: Tábor | R114: 200215.3397 | BL114: 200215.3397 | BM114: 200200
A115: Dražíč | B115: 283 | C115: 549371 | D115: 1 | E115: 0 | F115: 0 | G115: 0 | H115: 0 | I115: Jihočeský kraj | J115: 545201 | K115: Týn nad Vltavou | L115: 545201 | M115: Týn nad Vltavou | N115: 545201 | O115: Týn nad Vltavou | P115: 545201 | Q115: Týn nad Vltavou | R115: 71941.66279 | BL115: 71941.66279 | BM115: 71900
A116: Dražičky | B116: 173 | C116: 552291 | D116: 1 | E116: 0 | F116: 0 | G116: 0 | H116: 0 | I116: Jihočeský kraj | J116: 552666 | K116: Malšice | L116: 552046 | M116: Tábor | N116: 552046 | O116: Tábor | P116: 552046 | Q116: Tábor | R116: 71941.66279 | AR116: 1 | AS116: =AR116*30500 -> 30500 | BL116: 102441.6628 | BM116: 102400
A117: Drážov | B117: 228 | C117: 551023 | D117: 1 | E117: 0 | F117: 0 | G117: 0 | H117: 0 | I117: Jihočeský kraj | J117: 550957 | K117: Čestice | L117: 551970 | M117: Volyně | N117: 551970 | O117: Volyně | P117: 550787 | Q117: Strakonice | R117: 71941.66279 | AR117: 1 | AS117: =AR117*30500 -> 30500 | BL117: 102441.6628 | BM117: 102400
A118: Drhovice | B118: 225 | C118: 563307 | D118: 1 | E118: 0 | F118: 0 | G118: 0 | H118: 0 | I118: Jihočeský kraj | J118: 552046 | K118: Tábor | L118: 552046 | M118: Tábor | N118: 552046 | O118: Tábor | P118: 552046 | Q118: Tábor | R118: 71941.66279 | BL118: 71941.66279 | BM118: 71900
A119: Drhovle | B119: 667 | C119: 549380 | D119: 1 | E119: 0 | F119: 0 | G119: 0 | H119: 0 | I119: Jihočeský kraj | J119: 549240 | K119: Písek | L119: 549240 | M119: Písek | N119: 549240 | O119: Písek | P119: 549240 | Q119: Písek | R119: 158428.5374 | AR119: 13 | AS119: =AR119*30500 -> 396500 | BL119: 554928.5374 | BM119: 554900
A120: Droužetice | B120: 130 | C120: 560243 | D120: 1 | E120: 0 | F120: 0 | G120: 0 | H120: 0 | I120: Jihočeský kraj | J120: 550787 | K120: Strakonice | L120: 550787 | M120: Strakonice | N120: 550787 | O120: Strakonice | P120: 550787 | Q120: Strakonice | R120: 71941.66279 | BL120: 71941.66279 | BM120: 71900
A121: Drslavice | B121: 96 | C121: 537187 | D121: 1 | E121: 0 | F121: 0 | G121: 0 | H121: 0 | I121: Jihočeský kraj | J121: 550230 | K121: Husinec | L121: 550094 | M121: Prachatice | N121: 550094 | O121: Prachatice | P121: 550094 | Q121: Prachatice | R121: 71941.66279 | BL121: 71941.66279 | BM121: 71900
A122: Drunče | B122: 56 | C122: 560987 | D122: 1 | E122: 0 | F122: 0 | G122: 0 | H122: 0 | I122: Jihočeský kraj | J122: 546151 | K122: Deštná | L122: 545881 | M122: Jindřichův Hradec | N122: 545881 | O122: Jindřichův Hradec | P122: 545881 | Q122: Jindřichův Hradec | R122: 71941.66279 | BL122: 71941.66279 | BM122: 71900
A123: Dřešín | B123: 328 | C123: 551040 | D123: 1 | E123: 0 | F123: 0 | G123: 0 | H123: 0 | I123: Jihočeský kraj | J123: 550957 | K123: Čestice | L123: 551970 | M123: Volyně | N123: 551970 | O123: Volyně | P123: 550787 | Q123: Strakonice | R123: 78586.08658 | BL123: 78586.08658 | BM123: 78600
A124: Dříteň | B124: 1711 | C124: 544426 | D124: 1 | E124: 1 | F124: 0 | G124: 0 | H124: 0 | I124: Jihočeský kraj | J124: 544426 | K124: Dříteň | L124: 544485 | M124: Hluboká nad Vltavou | N124: 544485 | O124: Hluboká nad Vltavou | P124: 544256 | Q124: České Budějovice | R124: 399461.2214 | S124: =SUMIFS($B:$B,$J:$J,$C124) -> 2759 | T124: 150040.9169 | U124: 0 | V124: =U124*768 -> 0 | W124: 21 | X124: =W124*3072 -> 64512 | Y124: 8 | Z124: =Y124*1024 -> 8192 | AA124: 4 | AB124: =AA124*256 -> 1024 | BL124: 623230.1383 | BM124: 623200
A125: Dub | B125: 425 | C125: 550183 | D125: 1 | E125: 0 | F125: 0 | G125: 0 | H125: 0 | I125: Jihočeský kraj | J125: 550540 | K125: Strunkovice nad Blanicí | L125: 550094 | M125: Prachatice | N125: 550094 | O125: Prachatice | P125: 550094 | Q125: Prachatice | R125: 101539.5322 | AR125: 2 | AS125: =AR125*30500 -> 61000 | BL125: 162539.5322 | BM125: 162500
A126: Dubičné | B126: 418 | C126: 535788 | D126: 1 | E126: 0 | F126: 0 | G126: 0 | H126: 0 | I126: Jihočeský kraj | J126: 544981 | K126: Rudolfov | L126: 544981 | M126: Rudolfov | N126: 544256 | O126: České Budějovice | P126: 544256 | Q126: České Budějovice | R126: 99886.27486 | BL126: 99886.27486 | BM126: 99900
A127: Dubné | B127: 1747 | C127: 544442 | D127: 1 | E127: 1 | F127: 0 | G127: 0 | H127: 0 | I127: Jihočeský kraj | J127: 544442 | K127: Dubné | L127: 544256 | M127: České Budějovice | N127: 544256 | O127: České Budějovice | P127: 544256 | Q127: České Budějovice | R127: 407671.9934 | S127: =SUMIFS($B:$B,$J:$J,$C127) -> 5302 | T127: 287768.395 | U127: 0 | V127: =U127*768 -> 0 | W127: 42 | X127: =W127*3072 -> 129024 | Y127: 11 | Z127: =Y127*1024 -> 11264 | AA127: 2 | AB127: =AA127*256 -> 512 | BL127: 836240.3883 | BM127: 836200
A128: Dunajovice | B128: 228 | C128: 562815 | D128: 1 | E128: 0 | F128: 0 | G128: 0 | H128: 0 | I128: Jihočeský kraj | J128: 547336 | K128: Třeboň | L128: 547336 | M128: Třeboň | N128: 547336 | O128: Třeboň | P128: 547336 | Q128: Třeboň | R128: 71941.66279 | BL128: 71941.66279 | BM128: 71900
A129: Dvory | B129: 93 | C129: 537144 | D129: 1 | E129: 0 | F129: 0 | G129: 0 | H129: 0 | I129: Jihočeský kraj | J129: 550230 | K129: Husinec | L129: 550094 | M129: Prachatice | N129: 550094 | O129: Prachatice | P129: 550094 | Q129: Prachatice | R129: 71941.66279 | BL129: 71941.66279 | BM129: 71900
A130: Dvory nad Lužnicí | B130: 388 | C130: 509141 | D130: 1 | E130: 0 | F130: 0 | G130: 0 | H130: 0 | I130: Jihočeský kraj | J130: 547280 | K130: Suchdol nad Lužnicí | L130: 547280 | M130: Suchdol nad Lužnicí | N130: 547280 | O130: Suchdol nad Lužnicí | P130: 547336 | Q130: Třeboň | R130: 92795.44155 | BL130: 92795.44155 | BM130: 92800
A131: Dynín | B131: 380 | C131: 544451 | D131: 1 | E131: 0 | F131: 0 | G131: 0 | H131: 0 | I131: Jihočeský kraj | J131: 545121 | K131: Ševětín | L131: 544256 | M131: České Budějovice | N131: 544256 | O131: České Budějovice | P131: 544256 | Q131: České Budějovice | R131: 90903.03173 | BL131: 90903.03173 | BM131: 90900
A132: Frahelž | B132: 157 | C132: 562637 | D132: 1 | E132: 0 | F132: 0 | G132: 0 | H132: 0 | I132: Jihočeský kraj | J132: 546674 | K132: Lomnice nad Lužnicí | L132: 547336 | M132: Třeboň | N132: 547336 | O132: Třeboň | P132: 547336 | Q132: Třeboň | R132: 71941.66279 | BL132: =SUMIF(R132:R132,"<>")+SUMIF(T132:T132,"<>")+SUMIF(V132:V132,"<>")+SUMIF(X132:X132,"<>")+SUMIF(Z132:Z132,"<>")+SUMIF(AB132:AB132,"<>")+SUMIF(AD132:AD132,"<>")+SUMIF(AF132:AF132,"<>")+SUMIF(AH132:AH132,"<>")+SUMIF(AJ132:AJ132,"<>")+SUMIF(AK132:AK132,"<>")+SUMIF(AM132:AM132,"<>")+SUMIF(AO132:AO132,"<>")+SUMIF(AQ132:AQ132,"<>")+SUMIF(AS132:AS132,"<>")+SUMIF(AU132:AU132,"<>")+SUMIF(AW132:AW132,"<>")+SUMIF(AY132:AY132,"<>")+SUMIF(BA132:BA132,"<>")+SUMIF(BC132:BC132,"<>")+SUMIF(BE132:BE132,"<>")+SUMIF(BG132:BG132,"<>")+SUMIF(BI132:BI132,"<>")+SUMIF(BK132:BK132,"<>") -> 71941.66279 | BM132: =ROUND(BL132/100,0)*100 -> 71900
A133: Frymburk | B133: 1355 | C133: 545481 | D133: 1 | E133: 1 | F133: 0 | G133: 0 | H133: 0 | I133: Jihočeský kraj | J133: 545481 | K133: Frymburk | L133: 545511 | M133: Horní Planá | N133: 545511 | O133: Horní Planá | P133: 545392 | Q133: Český Krumlov | R133: 317938.9421 | S133: =SUMIFS($B:$B,$J:$J,$C133) -> 2231 | T133: 121389.4117 | U133: 0 | V133: =U133*768 -> 0 | W133: 13 | X133: =W133*3072 -> 39936 | Y133: 10 | Z133: =Y133*1024 -> 10240 | AA133: 7 | AB133: =AA133*256 -> 1792 | AR133: 1 | AS133: =AR133*30500 -> 30500 | BL133: 521796.3538 | BM133: 521800
A134: Habří | B134: 126 | C134: 535575 | D134: 1 | E134: 0 | F134: 0 | G134: 0 | H134: 0 | I134: Jihočeský kraj | J134: 544442 | K134: Dubné | L134: 544256 | M134: České Budějovice | N134: 544256 | O134: České Budějovice | P134: 544256 | Q134: České Budějovice | R134: 71941.66279 | BL134: 71941.66279 | BM134: 71900
A135: Hadravova Rosička | B135: 53 | C135: 562696 | D135: 1 | E135: 0 | F135: 0 | G135: 0 | H135: 0 | I135: Jihočeský kraj | J135: 546801 | K135: Nová Včelnice | L135: 546801 | M135: Nová Včelnice | N135: 545881 | O135: Jindřichův Hradec | P135: 545881 | Q135: Jindřichův Hradec | R135: 71941.66279 | BL135: 71941.66279 | BM135: 71900
A136: Hajany | B136: 173 | C136: 551597 | D136: 1 | E136: 0 | F136: 0 | G136: 0 | H136: 0 | I136: Jihočeský kraj | J136: 550850 | K136: Blatná | L136: 550850 | M136: Blatná | N136: 550850 | O136: Blatná | P136: 550850 | Q136: Blatná | R136: 71941.66279 | BL136: 71941.66279 | BM136: 71900
A137: Hájek | B137: 46 | C137: 561690 | D137: 1 | E137: 0 | F137: 0 | G137: 0 | H137: 0 | I137: Jihočeský kraj | J137: 550809 | K137: Bavorov | L137: 551953 | M137: Vodňany | N137: 551953 | O137: Vodňany | P137: 551953 | Q137: Vodňany | R137: 71941.66279 | BL137: 71941.66279 | BM137: 71900
A138: Halámky | B138: 154 | C138: 562807 | D138: 1 | E138: 0 | F138: 0 | G138: 0 | H138: 0 | I138: Jihočeský kraj | J138: 547280 | K138: Suchdol nad Lužnicí | L138: 547280 | M138: Suchdol nad Lužnicí | N138: 547280 | O138: Suchdol nad Lužnicí | P138: 547336 | Q138: Třeboň | R138: 71941.66279 | BL138: 71941.66279 | BM138: 71900
A139: Hamr | B139: 345 | C139: 562386 | D139: 1 | E139: 0 | F139: 0 | G139: 0 | H139: 0 | I139: Jihočeský kraj | J139: 546461 | K139: Chlum u Třeboně | L139: 547336 | M139: Třeboň | N139: 547336 | O139: Třeboň | P139: 547336 | Q139: Třeboň | R139: 82615.95097 | BL139: 82615.95097 | BM139: 82600
A140: Hartmanice | B140: 194 | C140: 536075 | D140: 1 | E140: 0 | F140: 0 | G140: 0 | H140: 0 | I140: Jihočeský kraj | J140: 544388 | K140: Dolní Bukovsko | L140: 545201 | M140: Týn nad Vltavou | N140: 545201 | O140: Týn nad Vltavou | P140: 545201 | Q140: Týn nad Vltavou | R140: 71941.66279 | BL140: 71941.66279 | BM140: 71900
A141: Haškovcova Lhota | B141: 74 | C141: 563625 | D141: 1 | E141: 0 | F141: 0 | G141: 0 | H141: 0 | I141: Jihočeský kraj | J141: 552054 | K141: Bechyně | L141: 552054 | M141: Bechyně | N141: 552054 | O141: Bechyně | P141: 552046 | Q141: Tábor | R141: 71941.66279 | BL141: 71941.66279 | BM141: 71900
A142: Hatín | B142: 250 | C142: 546291 | D142: 1 | E142: 0 | F142: 0 | G142: 0 | H142: 0 | I142: Jihočeský kraj | J142: 545881 | K142: Jindřichův Hradec | L142: 545881 | M142: Jindřichův Hradec | N142: 545881 | O142: Jindřichův Hradec | P142: 545881 | Q142: Jindřichův Hradec | R142: 71941.66279 | BL142: 71941.66279 | BM142: 71900
A143: Heřmaň | B143: 213 | C143: 598593 | D143: 1 | E143: 0 | F143: 0 | G143: 0 | H143: 0 | I143: Jihočeský kraj | J143: 544256 | K143: České Budějovice | L143: 544256 | M143: České Budějovice | N143: 544256 | O143: České Budějovice | P143: 544256 | Q143: České Budějovice | R143: 71941.66279 | BL143: 71941.66279 | BM143: 71900
A144: Heřmaň | B144: 321 | C144: 549398 | D144: 1 | E144: 0 | F144: 0 | G144: 0 | H144: 0 | I144: Jihočeský kraj | J144: 549240 | K144: Písek | L144: 549240 | M144: Písek | N144: 549240 | O144: Písek | P144: 549240 | Q144: Písek | R144: 76925.80797 | BL144: 76925.80797 | BM144: 76900
A145: Heřmaneč | B145: 90 | C145: 546305 | D145: 1 | E145: 0 | F145: 0 | G145: 0 | H145: 0 | I145: Jihočeský kraj | J145: 547263 | K145: Studená | L145: 547263 | M145: Studená | N145: 546127 | O145: Dačice | P145: 546127 | Q145: Dačice | R145: 71941.66279 | BL145: 71941.66279 | BM145: 71900
A146: Hlasivo | B146: 135 | C146: 560481 | D146: 1 | E146: 0 | F146: 0 | G146: 0 | H146: 0 | I146: Jihočeský kraj | J146: 552704 | K146: Mladá Vožice | L146: 552704 | M146: Mladá Vožice | N146: 552704 | O146: Mladá Vožice | P146: 552046 | Q146: Tábor | R146: 71941.66279 | BL146: 71941.66279 | BM146: 71900
A147: Hlavatce | B147: 427 | C147: 552321 | D147: 1 | E147: 0 | F147: 0 | G147: 0 | H147: 0 | I147: Jihočeský kraj | J147: 553131 | K147: Soběslav | L147: 553131 | M147: Soběslav | N147: 553131 | O147: Soběslav | P147: 553131 | Q147: Soběslav | R147: 102011.8046 | BL147: 102011.8046 | BM147: 102000
A148: Hlavatce | B148: 150 | C148: 535851 | D148: 1 | E148: 0 | F148: 0 | G148: 0 | H148: 0 | I148: Jihočeský kraj | J148: 545341 | K148: Zliv | L148: 544256 | M148: České Budějovice | N148: 544256 | O148: České Budějovice | P148: 544256 | Q148: České Budějovice | R148: 71941.66279 | BL148: 71941.66279 | BM148: 71900
A149: Hlincová Hora | B149: 488 | C149: 598607 | D149: 1 | E149: 0 | F149: 0 | G149: 0 | H149: 0 | I149: Jihočeský kraj | J149: 544981 | K149: Rudolfov | L149: 544981 | M149: Rudolfov | N149: 544256 | O149: České Budějovice | P149: 544256 | Q149: České Budějovice | R149: 116398.0877 | BL149: 116398.0877 | BM149: 116400
A150: Hluboká nad Vltavou | B150: 5626 | C150: 544485 | D150: 1 | E150: 1 | F150: 1 | G150: 1 | H150: 0 | I150: Jihočeský kraj | J150: 544485 | K150: Hluboká nad Vltavou | L150: 544485 | M150: Hluboká nad Vltavou | N150: 544485 | O150: Hluboká nad Vltavou | P150: 544256 | Q150: České Budějovice | R150: 1266633.751 | S150: =SUMIFS($B:$B,$J:$J,$C150) -> 6604 | T150: 358141.7711 | U150: 0 | V150: =U150*768 -> 0 | W150: 77 | X150: =W150*3072 -> 236544 | Y150: 24 | Z150: =Y150*1024 -> 24576 | AA150: 18 | AB150: =AA150*256 -> 4608 | AC150: =SUMIFS($B:$B,$L:$L,$C150) -> 8385 | AD150: =(koeficienty!$C$4/(koeficienty!$B$4 + SQRT(IF(AC150<300,0.3,AC150/1000)))) * (IF(AC150<300,0.3,AC150/1000)) -> 1042245.894 | AG150: =SUMIFS($B:$B,$N:$N,$C150) -> 8385 | AH150: 944157.9661 | AR150: 3 | AS150: =AR150*30500 -> 91500 | BL150: 3968407.383 | BM150: 3968400
A151: Hlupín | B151: 95 | C151: 536628 | D151: 1 | E151: 0 | F151: 0 | G151: 0 | H151: 0 | I151: Jihočeský kraj | J151: 551791 | K151: Střelské Hoštice | L151: 550787 | M151: Strakonice | N151: 550787 | O151: Strakonice | P151: 550787 | Q151: Strakonice | R151: 71941.66279 | BL151: 71941.66279 | BM151: 71900
A152: Hodětín | B152: 93 | C152: 598992 | D152: 1 | E152: 0 | F152: 0 | G152: 0 | H152: 0 | I152: Jihočeský kraj | J152: 552054 | K152: Bechyně | L152: 552054 | M152: Bechyně | N152: 552054 | O152: Bechyně | P152: 552046 | Q152: Tábor | R152: 71941.66279 | BL152: 71941.66279 | BM152: 71900
A153: Hodonice | B153: 134 | C153: 562904 | D153: 1 | E153: 0 | F153: 0 | G153: 0 | H153: 0 | I153: Jihočeský kraj | J153: 552054 | K153: Bechyně | L153: 552054 | M153: Bechyně | N153: 552054 | O153: Bechyně | P153: 552046 | Q153: Tábor | R153: 71941.66279 | BL153: 71941.66279 | BM153: 71900
A154: Holubov | B154: 1089 | C154: 545490 | D154: 1 | E154: 0 | F154: 0 | G154: 0 | H154: 0 | I154: Jihočeský kraj | J154: 545571 | K154: Křemže | L154: 545571 | M154: Křemže | N154: 545392 | O154: Český Krumlov | P154: 545392 | Q154: Český Krumlov | R154: 256604.7176 | BL154: 256604.7176 | BM154: 256600
A155: Homole | B155: 1685 | C155: 544493 | D155: 1 | E155: 0 | F155: 0 | G155: 0 | H155: 0 | I155: Jihočeský kraj | J155: 544299 | K155: Boršov nad Vltavou | L155: 544256 | M155: České Budějovice | N155: 544256 | O155: České Budějovice | P155: 544256 | Q155: České Budějovice | R155: 393527.5859 | AR155: 1 | AS155: =AR155*30500 -> 30500 | BL155: 424027.5859 | BM155: 424000
A156: Horní Dvořiště | B156: 440 | C156: 545503 | D156: 1 | E156: 1 | F156: 0 | G156: 0 | H156: 0 | I156: Jihočeský kraj | J156: 545503 | K156: Horní Dvořiště | L156: 545562 | M156: Kaplice | N156: 545562 | O156: Kaplice | P156: 545562 | Q156: Kaplice | R156: 105080.6431 | S156: =SUMIFS($B:$B,$J:$J,$C156) -> 440 | T156: 24001.75767 | U156: 0 | V156: =U156*768 -> 0 | W156: 2 | X156: =W156*3072 -> 6144 | Y156: 0 | Z156: =Y156*1024 -> 0 | AA156: 1 | AB156: =AA156*256 -> 256 | BL156: 135482.4007 | BM156: 135500
A157: Horní Kněžeklady | B157: 110 | C157: 536105 | D157: 1 | E157: 0 | F157: 0 | G157: 0 | H157: 0 | I157: Jihočeský kraj | J157: 545201 | K157: Týn nad Vltavou | L157: 545201 | M157: Týn nad Vltavou | N157: 545201 | O157: Týn nad Vltavou | P157: 545201 | Q157: Týn nad Vltavou | R157: 71941.66279 | BL157: 71941.66279 | BM157: 71900
A158: Horní Meziříčko | B158: 110 | C158: 598658 | D158: 1 | E158: 0 | F158: 0 | G158: 0 | H158: 0 | I158: Jihočeský kraj | J158: 547263 | K158: Studená | L158: 547263 | M158: Studená | N158: 546127 | O158: Dačice | P158: 546127 | Q158: Dačice | R158: 71941.66279 | BL158: 71941.66279 | BM158: 71900
A159: Horní Němčice | B159: 85 | C159: 562785 | D159: 1 | E159: 0 | F159: 0 | G159: 0 | H159: 0 | I159: Jihočeský kraj | J159: 547263 | K159: Studená | L159: 547263 | M159: Studená | N159: 546127 | O159: Dačice | P159: 546127 | Q159: Dačice | R159: 71941.66279 | BL159: 71941.66279 | BM159: 71900
A160: Horní Pěna | B160: 582 | C160: 546364 | D160: 1 | E160: 0 | F160: 0 | G160: 0 | H160: 0 | I160: Jihočeský kraj | J160: 545881 | K160: Jindřichův Hradec | L160: 545881 | M160: Jindřichův Hradec | N160: 545881 | O160: Jindřichův Hradec | P160: 545881 | Q160: Jindřichův Hradec | R160: 138502.6126 | BL160: 138502.6126 | BM160: 138500
A161: Horní Planá | B161: 1943 | C161: 545511 | D161: 1 | E161: 1 | F161: 1 | G161: 1 | H161: 0 | I161: Jihočeský kraj | J161: 545511 | K161: Horní Planá | L161: 545511 | M161: Horní Planá | N161: 545511 | O161: Horní Planá | P161: 545392 | Q161: Český Krumlov | R161: 452275.3364 | S161: =SUMIFS($B:$B,$J:$J,$C161) -> 2799 | T161: 152210.6045 | U161: 0 | V161: =U161*768 -> 0 | W161: 21 | X161: =W161*3072 -> 64512 | Y161: 28 | Z161: =Y161*1024 -> 28672 | AA161: 15 | AB161: =AA161*256 -> 3840 | AC161: =SUMIFS($B:$B,$L:$L,$C161) -> 4154 | AD161: =(koeficienty!$C$4/(koeficienty!$B$4 + SQRT(IF(AC161<300,0.3,AC161/1000)))) * (IF(AC161<300,0.3,AC161/1000)) -> 519895.2561 | AG161: =SUMIFS($B:$B,$N:$N,$C161) -> 4154 | AH161: 469951.6728 | AR161: 2 | AS161: =AR161*30500 -> 61000 | BL161: 1752356.87 | BM161: 1752400
A162: Horní Poříčí | B162: 307 | C162: 536881 | D162: 1 | E162: 0 | F162: 0 | G162: 0 | H162: 0 | I162: Jihočeský kraj | J162: 551791 | K162: Střelské Hoštice | L162: 550787 | M162: Strakonice | N162: 550787 | O162: Strakonice | P162: 550787 | Q162: Strakonice | R162: 73603.60258 | BL162: 73603.60258 | BM162: 73600
A163: Horní Radouň | B163: 262 | C163: 546381 | D163: 1 | E163: 0 | F163: 0 | G163: 0 | H163: 0 | I163: Jihočeský kraj | J163: 546801 | K163: Nová Včelnice | L163: 546801 | M163: Nová Včelnice | N163: 545881 | O163: Jindřichův Hradec | P163: 545881 | Q163: Jindřichův Hradec | R163: 71941.66279 | BL163: 71941.66279 | BM163: 71900
A164: Horní Skrýchov | B164: 260 | C164: 561061 | D164: 1 | E164: 0 | F164: 0 | G164: 0 | H164: 0 | I164: Jihočeský kraj | J164: 545881 | K164: Jindřichův Hradec | L164: 545881 | M164: Jindřichův Hradec | N164: 545881 | O164: Jindřichův Hradec | P164: 545881 | Q164: Jindřichův Hradec | R164: 71941.66279 | BL164: 71941.66279 | BM164: 71900
A165: Horní Slatina | B165: 135 | C165: 562319 | D165: 1 | E165: 0 | F165: 0 | G165: 0 | H165: 0 | I165: Jihočeský kraj | J165: 546127 | K165: Dačice | L165: 546127 | M165: Dačice | N165: 546127 | O165: Dačice | P165: 546127 | Q165: Dačice | R165: 71941.66279 | BL165: 71941.66279 | BM165: 71900
A166: Horní Stropnice | B166: 1492 | C166: 544515 | D166: 1 | E166: 1 | F166: 0 | G166: 0 | H166: 0 | I166: Jihočeský kraj | J166: 544515 | K166: Horní Stropnice | L166: 544868 | M166: Nové Hrady | N166: 544868 | O166: Nové Hrady | P166: 545171 | Q166: Trhové Sviny | R166: 349383.6963 | S166: =SUMIFS($B:$B,$J:$J,$C166) -> 1492 | T166: 81248.11944 | U166: 0 | V166: =U166*768 -> 0 | W166: 5 | X166: =W166*3072 -> 15360 | Y166: 18 | Z166: =Y166*1024 -> 18432 | AA166: 5 | AB166: =AA166*256 -> 1280 | AR166: 1 | AS166: =AR166*30500 -> 30500 | BL166: 496203.8158 | BM166: 496200
A167: Horní Vltavice | B167: 354 | C167: 550205 | D167: 1 | E167: 0 | F167: 0 | G167: 0 | H167: 0 | I167: Jihočeský kraj | J167: 550647 | K167: Vimperk | L167: 550647 | M167: Vimperk | N167: 550647 | O167: Vimperk | P167: 550647 | Q167: Vimperk | R167: 84748.14537 | BL167: 84748.14537 | BM167: 84700
A168: Hornosín | B168: 67 | C168: 536369 | D168: 1 | E168: 0 | F168: 0 | G168: 0 | H168: 0 | I168: Jihočeský kraj | J168: 550817 | K168: Bělčice | L168: 550850 | M168: Blatná | N168: 550850 | O168: Blatná | P168: 550850 | Q168: Blatná | R168: 71941.66279 | BL168: 71941.66279 | BM168: 71900
A169: Horosedly | B169: 162 | C169: 561525 | D169: 1 | E169: 0 | F169: 0 | G169: 0 | H169: 0 | I169: Jihočeský kraj | J169: 549592 | K169: Mirovice | L169: 549592 | M169: Mirovice | N169: 549592 | O169: Mirovice | P169: 549240 | Q169: Písek | R169: 71941.66279 | BL169: 71941.66279 | BM169: 71900
A170: Hořice na Šumavě | B170: 910 | C170: 545520 | D170: 1 | E170: 1 | F170: 0 | G170: 0 | H170: 0 | I170: Jihočeský kraj | J170: 545520 | K170: Hořice na Šumavě | L170: 545392 | M170: Český Krumlov | N170: 545392 | O170: Český Krumlov | P170: 545392 | Q170: Český Krumlov | R170: 215102.7227 | S170: =SUMIFS($B:$B,$J:$J,$C170) -> 910 | T170: 49595.61091 | U170: 0 | V170: =U170*768 -> 0 | W170: 2 | X170: =W170*3072 -> 6144 | Y170: 2 | Z170: =Y170*1024 -> 2048 | AA170: 4 | AB170: =AA170*256 -> 1024 | AR170: 2 | AS170: =AR170*30500 -> 61000 | BL170: 334914.3336 | BM170: 334900
A171: Hosín | B171: 978 | C171: 544523 | D171: 1 | E171: 0 | F171: 0 | G171: 0 | H171: 0 | I171: Jihočeský kraj | J171: 544485 | K171: Hluboká nad Vltavou | L171: 544256 | M171: České Budějovice | N171: 544256 | O171: České Budějovice | P171: 544256 | Q171: České Budějovice | R171: 230891.8782 | BL171: 230891.8782 | BM171: 230900
A172: Hoslovice | B172: 172 | C172: 551104 | D172: 1 | E172: 0 | F172: 0 | G172: 0 | H172: 0 | I172: Jihočeský kraj | J172: 550957 | K172: Čestice | L172: 551970 | M172: Volyně | N172: 551970 | O172: Volyně | P172: 550787 | Q172: Strakonice | R172: 71941.66279 | BL172: 71941.66279 | BM172: 71900
A173: Hospříz | B173: 449 | C173: 546402 | D173: 1 | E173: 0 | F173: 0 | G173: 0 | H173: 0 | I173: Jihočeský kraj | J173: 545881 | K173: Jindřichův Hradec | L173: 545881 | M173: Jindřichův Hradec | N173: 545881 | O173: Jindřichův Hradec | P173: 545881 | Q173: Jindřichův Hradec | R173: 107204.2862 | BL173: 107204.2862 | BM173: 107200
A174: Hosty | B174: 166 | C174: 535524 | D174: 1 | E174: 0 | F174: 0 | G174: 0 | H174: 0 | I174: Jihočeský kraj | J174: 545201 | K174: Týn nad Vltavou | L174: 545201 | M174: Týn nad Vltavou | N174: 545201 | O174: Týn nad Vltavou | P174: 545201 | Q174: Týn nad Vltavou | R174: 71941.66279 | BL174: 71941.66279 | BM174: 71900
A175: Hoštice | B175: 145 | C175: 551121 | D175: 1 | E175: 0 | F175: 0 | G175: 0 | H175: 0 | I175: Jihočeský kraj | J175: 551970 | K175: Volyně | L175: 551970 | M175: Volyně | N175: 551970 | O175: Volyně | P175: 550787 | Q175: Strakonice | R175: 71941.66279 | BL175: 71941.66279 | BM175: 71900
A176: Hradce | B176: 112 | C176: 535460 | D176: 1 | E176: 0 | F176: 0 | G176: 0 | H176: 0 | I176: Jihočeský kraj | J176: 544299 | K176: Boršov nad Vltavou | L176: 544256 | M176: České Budějovice | N176: 544256 | O176: České Budějovice | P176: 544256 | Q176: České Budějovice | R176: 71941.66279 | BL176: 71941.66279 | BM176: 71900
A177: Hracholusky | B177: 479 | C177: 550221 | D177: 1 | E177: 0 | F177: 0 | G177: 0 | H177: 0 | I177: Jihočeský kraj | J177: 550540 | K177: Strunkovice nad Blanicí | L177: 550094 | M177: Prachatice | N177: 550094 | O177: Prachatice | P177: 550094 | Q177: Prachatice | R177: 114277.6706 | BL177: 114277.6706 | BM177: 114300
A178: Hrachoviště | B178: 80 | C178: 562831 | D178: 1 | E178: 0 | F178: 0 | G178: 0 | H178: 0 | I178: Jihočeský kraj | J178: 547336 | K178: Třeboň | L178: 547336 | M178: Třeboň | N178: 547336 | O178: Třeboň | P178: 547336 | Q178: Třeboň | R178: 71941.66279 | BL178: 71941.66279 | BM178: 71900
A179: Hranice | B179: 209 | C179: 544540 | D179: 1 | E179: 0 | F179: 0 | G179: 0 | H179: 0 | I179: Jihočeský kraj | J179: 544868 | K179: Nové Hrady | L179: 544868 | M179: Nové Hrady | N179: 544868 | O179: Nové Hrady | P179: 545171 | Q179: Trhové Sviny | R179: 71941.66279 | AR179: 1 | AS179: =AR179*30500 -> 30500 | BL179: 102441.6628 | BM179: 102400
A180: Hrazany | B180: 288 | C180: 549410 | D180: 1 | E180: 0 | F180: 0 | G180: 0 | H180: 0 | I180: Jihočeský kraj | J180: 549517 | K180: Kovářov | L180: 549576 | M180: Milevsko | N180: 549576 | O180: Milevsko | P180: 549576 | Q180: Milevsko | R180: 71941.66279 | BL180: 71941.66279 | BM180: 71900
A181: Hrdějovice | B181: 1506 | C181: 544558 | D181: 1 | E181: 0 | F181: 0 | G181: 0 | H181: 0 | I181: Jihočeský kraj | J181: 544256 | K181: České Budějovice | L181: 544256 | M181: České Budějovice | N181: 544256 | O181: České Budějovice | P181: 544256 | Q181: České Budějovice | R181: 352591.798 | AR181: 1 | AS181: =AR181*30500 -> 30500 | BL181: 383091.798 | BM181: 383100
A182: Hrejkovice | B182: 507 | C182: 549428 | D182: 1 | E182: 0 | F182: 0 | G182: 0 | H182: 0 | I182: Jihočeský kraj | J182: 549576 | K182: Milevsko | L182: 549576 | M182: Milevsko | N182: 549576 | O182: Milevsko | P182: 549576 | Q182: Milevsko | R182: 120872.1528 | AR182: 1 | AS182: =AR182*30500 -> 30500 | BL182: 151372.1528 | BM182: 151400
A183: Hříšice | B183: 329 | C183: 546445 | D183: 1 | E183: 0 | F183: 0 | G183: 0 | H183: 0 | I183: Jihočeský kraj | J183: 546127 | K183: Dačice | L183: 546127 | M183: Dačice | N183: 546127 | O183: Dačice | P183: 546127 | Q183: Dačice | R183: 78823.22492 | BL183: 78823.22492 | BM183: 78800
A184: Hůry | B184: 610 | C184: 535753 | D184: 1 | E184: 0 | F184: 0 | G184: 0 | H184: 0 | I184: Jihočeský kraj | J184: 544981 | K184: Rudolfov | L184: 544981 | M184: Rudolfov | N184: 544256 | O184: České Budějovice | P184: 544256 | Q184: České Budějovice | R184: 145072.7307 | BL184: 145072.7307 | BM184: 145100
A185: Husinec | B185: 1405 | C185: 550230 | D185: 1 | E185: 1 | F185: 0 | G185: 0 | H185: 0 | I185: Jihočeský kraj | J185: 550230 | K185: Husinec | L185: 550094 | M185: Prachatice | N185: 550094 | O185: Prachatice | P185: 550094 | Q185: Prachatice | R185: 329426.034 | S185: =SUMIFS($B:$B,$J:$J,$C185) -> 2333 | T185: 126926.0998 | U185: 0 | V185: =U185*768 -> 0 | W185: 10 | X185: =W185*3072 -> 30720 | Y185: 6 | Z185: =Y185*1024 -> 6144 | AA185: 2 | AB185: =AA185*256 -> 512 | AR185: 1 | AS185: =AR185*30500 -> 30500 | BL185: 524228.1339 | BM185: 524200
A186: Hvozdec | B186: 141 | C186: 535613 | D186: 1 | E186: 0 | F186: 0 | G186: 0 | H186: 0 | I186: Jihočeský kraj | J186: 544779 | K186: Lišov | L186: 544779 | M186: Lišov | N186: 544779 | O186: Lišov | P186: 544256 | Q186: České Budějovice | R186: 71941.66279 | BL186: 71941.66279 | BM186: 71900
A187: Chelčice | B187: 398 | C187: 551139 | D187: 1 | E187: 0 | F187: 0 | G187: 0 | H187: 0 | I187: Jihočeský kraj | J187: 551953 | K187: Vodňany | L187: 551953 | M187: Vodňany | N187: 551953 | O187: Vodňany | P187: 551953 | Q187: Vodňany | R187: 95160.04524 | BL187: 95160.04524 | BM187: 95200
A188: Chlum | B188: 202 | C188: 529982 | D188: 1 | E188: 0 | F188: 0 | G188: 0 | H188: 0 | I188: Jihočeský kraj | J188: 550850 | K188: Blatná | L188: 550850 | M188: Blatná | N188: 550850 | O188: Blatná | P188: 550850 | Q188: Blatná | R188: 71941.66279 | BL188: 71941.66279 | BM188: 71900
A189: Chlum u Třeboně | B189: 1816 | C189: 546461 | D189: 1 | E189: 1 | F189: 0 | G189: 0 | H189: 0 | I189: Jihočeský kraj | J189: 546461 | K189: Chlum u Třeboně | L189: 547336 | M189: Třeboň | N189: 547336 | O189: Třeboň | P189: 547336 | Q189: Třeboň | R189: 423393.2041 | S189: =SUMIFS($B:$B,$J:$J,$C189) -> 2845 | T189: 154705.5976 | U189: 0 | V189: =U189*768 -> 0 | W189: 10 | X189: =W189*3072 -> 30720 | Y189: 13 | Z189: =Y189*1024 -> 13312 | AA189: 3 | AB189: =AA189*256 -> 768 | BL189: 622898.8017 | BM189: 622900
A190: Chlumany | B190: 374 | C190: 550248 | D190: 1 | E190: 0 | F190: 0 | G190: 0 | H190: 0 | I190: Jihočeský kraj | J190: 550663 | K190: Vlachovo Březí | L190: 550094 | M190: Prachatice | N190: 550094 | O190: Prachatice | P190: 550094 | Q190: Prachatice | R190: 89483.29567 | BL190: 89483.29567 | BM190: 89500
A191: Chlumec | B191: 110 | C191: 536229 | D191: 1 | E191: 0 | F191: 0 | G191: 0 | H191: 0 | I191: Jihočeský kraj | J191: 545392 | K191: Český Krumlov | L191: 545392 | M191: Český Krumlov | N191: 545392 | O191: Český Krumlov | P191: 545392 | Q191: Český Krumlov | R191: 71941.66279 | BL191: 71941.66279 | BM191: 71900
A192: Chobot | B192: 39 | C192: 536903 | D192: 1 | E192: 0 | F192: 0 | G192: 0 | H192: 0 | I192: Jihočeský kraj | J192: 550817 | K192: Bělčice | L192: 550850 | M192: Blatná | N192: 550850 | O192: Blatná | P192: 550850 | Q192: Blatná | R192: 71941.66279 | BL192: 71941.66279 | BM192: 71900
A193: Chotěmice | B193: 123 | C193: 552453 | D193: 1 | E193: 0 | F193: 0 | G193: 0 | H193: 0 | I193: Jihočeský kraj | J193: 553239 | K193: Tučapy | L193: 553131 | M193: Soběslav | N193: 553131 | O193: Soběslav | P193: 553131 | Q193: Soběslav | R193: 71941.66279 | BL193: 71941.66279 | BM193: 71900
A194: Chotoviny | B194: 1912 | C194: 552461 | D194: 1 | E194: 1 | F194: 0 | G194: 0 | H194: 0 | I194: Jihočeský kraj | J194: 552461 | K194: Chotoviny | L194: 552046 | M194: Tábor | N194: 552046 | O194: Tábor | P194: 552046 | Q194: Tábor | R194: 445231.717 | S194: =SUMIFS($B:$B,$J:$J,$C194) -> 2739 | T194: 148956.0282 | U194: 0 | V194: =U194*768 -> 0 | W194: 5 | X194: =W194*3072 -> 15360 | Y194: 4 | Z194: =Y194*1024 -> 4096 | AA194: 1 | AB194: =AA194*256 -> 256 | BL194: 613899.7452 | BM194: 613900
A195: Chotýčany | B195: 262 | C195: 535907 | D195: 1 | E195: 0 | F195: 0 | G195: 0 | H195: 0 | I195: Jihočeský kraj | J195: 545121 | K195: Ševětín | L195: 544256 | M195: České Budějovice | N195: 544256 | O195: České Budějovice | P195: 544256 | Q195: České Budějovice | R195: 71941.66279 | BL195: 71941.66279 | BM195: 71900
A196: Choustník | B196: 484 | C196: 552470 | D196: 1 | E196: 1 | F196: 0 | G196: 0 | H196: 0 | I196: Jihočeský kraj | J196: 552470 | K196: Choustník | L196: 552046 | M196: Tábor | N196: 552046 | O196: Tábor | P196: 552046 | Q196: Tábor | R196: 115455.77 | S196: =SUMIFS($B:$B,$J:$J,$C196) -> 1601 | T196: 87172.05951 | U196: 0 | V196: =U196*768 -> 0 | W196: 4 | X196: =W196*3072 -> 12288 | Y196: 2 | Z196: =Y196*1024 -> 2048 | AA196: 2 | AB196: =AA196*256 -> 512 | BL196: =SUMIF(R196:R196,"<>")+SUMIF(T196:T196,"<>")+SUMIF(V196:V196,"<>")+SUMIF(X196:X196,"<>")+SUMIF(Z196:Z196,"<>")+SUMIF(AB196:AB196,"<>")+SUMIF(AD196:AD196,"<>")+SUMIF(AF196:AF196,"<>")+SUMIF(AH196:AH196,"<>")+SUMIF(AJ196:AJ196,"<>")+SUMIF(AK196:AK196,"<>")+SUMIF(AM196:AM196,"<>")+SUMIF(AO196:AO196,"<>")+SUMIF(AQ196:AQ196,"<>")+SUMIF(AS196:AS196,"<>")+SUMIF(AU196:AU196,"<>")+SUMIF(AW196:AW196,"<>")+SUMIF(AY196:AY196,"<>")+SUMIF(BA196:BA196,"<>")+SUMIF(BC196:BC196,"<>")+SUMIF(BE196:BE196,"<>")+SUMIF(BG196:BG196,"<>")+SUMIF(BI196:BI196,"<>")+SUMIF(BK196:BK196,"<>") -> 217475.8295 | BM196: =ROUND(BL196/100,0)*100 -> 217500
A197: Chrášťany | B197: 721 | C197: 544591 | D197: 1 | E197: 0 | F197: 0 | G197: 0 | H197: 0 | I197: Jihočeský kraj | J197: 545201 | K197: Týn nad Vltavou | L197: 545201 | M197: Týn nad Vltavou | N197: 545201 | O197: Týn nad Vltavou | P197: 545201 | Q197: Týn nad Vltavou | R197: 171058.7006 | BL197: 171058.7006 | BM197: 171100
A198: Chrášťovice | B198: 271 | C198: 551155 | D198: 1 | E198: 0 | F198: 0 | G198: 0 | H198: 0 | I198: Jihočeský kraj | J198: 551660 | K198: Radomyšl | L198: 550787 | M198: Strakonice | N198: 550787 | O198: Strakonice | P198: 550787 | Q198: Strakonice | R198: 71941.66279 | BL198: 71941.66279 | BM198: 71900
A199: Chrbonín | B199: 163 | C199: 563145 | D199: 1 | E199: 0 | F199: 0 | G199: 0 | H199: 0 | I199: Jihočeský kraj | J199: 552470 | K199: Choustník | L199: 552496 | M199: Chýnov | N199: 552046 | O199: Tábor | P199: 552046 | Q199: Tábor | R199: 71941.66279 | BL199: 71941.66279 | BM199: 71900
A200: Chroboly | B200: 601 | C200: 550264 | D200: 1 | E200: 0 | F200: 0 | G200: 0 | H200: 0 | I200: Jihočeský kraj | J200: 550094 | K200: Prachatice | L200: 550094 | M200: Prachatice | N200: 550094 | O200: Prachatice | P200: 550094 | Q200: Prachatice | R200: 142961.5933 | BL200: 142961.5933 | BM200: 143000
... 426 more rows
